Cogmind - Beta 16.1 @@@ ROGUE MODE // 2026.04.15 @ 10:21:21 Player: the Result: Smashed by cave-in Performance ------------- Evolutions (8) 4000 Regions Visited (28) 5600 Robots Destroyed (242) 1210 Value Destroyed (8566) 8566 Prototype IDs (172) 3440 Alien Tech Used (2) 400 Bonus (9645) 9645 TOTAL SCORE: 32861 Bonus ------- High Alert Combat Kills 699 Follower Combat Kills 3340 Hunted by Unchained 500 Network Hubs Disabled 400 Registered with UFD 300 Met Optimus in HQ 500 Met Zhirov 300 MAIN.C Attacked Warlord 500 Warlord Defense Kills 2818 Built Enhanced Grunts 300 A7 Reached Mainframe 300 Met R17 at Cetus 500 Met Optimus at Protoforge 1000 Friendly Fire -1812 Cogmind --------- Core Integrity 0/1450 Matter 300/300 Energy 841/850 System Corruption 6% Temperature Cool (0) Movement Rolling (80) Ox1 Location -2/Protoforge Parts ------- > --- POWER (3) -------- Improved Quantum Reactor Improved Quantum Reactor Improved Quantum Reactor > --- PROPULSION (6) --- Overtuned Huge Scrapsphere Overtuned Huge Scrapsphere Overtuned Huge Scrapsphere > --- UTILITY (8) ------ 0bPrime Scrap Suit Experimental Optical Array Experimental Targeting Computer Experimental Core Analyzer Experimental Kinecellerator Expert System (Blank) Centrium Medium Armor Plating > --- WEAPON (6) ------- Helical Railgun Helical Railgun Helical Railgun Helical Railgun Helical Railgun Helical Railgun > --- INVENTORY (5) ---- Experimental Targeting Computer Subatomic Replicator Cooled Nova Cannon Perforator Peak State ------------ > --- POWER ------------ Improved Quantum Reactor Improved Quantum Reactor Improved Quantum Reactor > --- PROPULSION ------- Overtuned Huge Scrapsphere Overtuned Huge Scrapsphere Overtuned Huge Scrapsphere > --- UTILITY ---------- 0bPrime Scrap Suit Experimental Optical Array Experimental Targeting Computer Experimental Core Analyzer Experimental Kinecellerator Expert System Centrium Medium Armor Plating > --- WEAPON ----------- Helical Railgun Helical Railgun Helical Railgun Helical Railgun Helical Railgun Helical Railgun > --- INVENTORY -------- Experimental Targeting Computer Subatomic Replicator Cooled Nova Cannon Perforator [Rating: 191] Favorites ----------- Power Light Angular Momentum Engine Engine Light Angular Momentum Engine Power Core Nuclear Core Reactor Improved Quantum Reactor Propulsion Armored Treads Treads Armored Treads Leg Enhanced Biometal Leg Wheel Overtuned Huge Scrapsphere Hover Unit Cooled Aerolev Unit Flight Unit Improved Flight Unit Utility High-capacity Storage Unit Device Seismic Detector Storage High-capacity Storage Unit Processor Advanced Signal Interpreter Hackware Improved Hacking Suite Protection Improved Propulsion Shielding Weapon Improved Assault Rifle Energy Gun Vortex Rail Energy Cannon Beam Cannon Ballistic Gun Improved Assault Rifle Ballistic Cannon Compact Linear Accelerator Launcher Rocket Launcher Special Weapon Junk Cannon Impact Weapon Maul Slashing Weapon Vibroblade Piercing Weapon Plasma Lance Special Melee Weapon Datajack Build | -11 -10 -10 -9 -9 -9 -9 -6 -6 -6 -6 -6 -6 -6 -5 -5 -5 -5 -4 -4 -4 -4 -4 -3 -3 -3 -2 -2 -2 ------- Run | Yrd Mat Min Mat Sto Rec Scr Fac Was Fac Ext Cet Arc Hub Fac Upp Upp War Pro Fac Upp Upp Zhi Pro Res Tes Res Qua Frg Slots Evolved 16 | . . . 2 . . . 6 . . . . . . 2 . . . . 2 . . . . 2 . 2 . . Power 2 | . . . . . . . 1 . . . . . . . . . . . . . . . . 1 . . . . Propulsion 4 | . . . 1 . . . 3 . . . . . . . . . . . . . . . . . . . . . Utility 6 | . . . 1 . . . 2 . . . . . . 2 . . . . 1 . . . . . . . . . Weapon 4 | . . . . . . . . . . . . . . . . . . . 1 . . . . 1 . 2 . . Parts Attached 245 | 8 8 13 40 10 3 21 8 8 12 1 2 5 8 4 . . 21 1 9 1 . 1 . 6 11 14 8 22 Power 37 | 1 1 2 7 2 1 1 1 2 1 . . . 4 . . . 3 . 1 . . 1 . 1 1 1 2 4 Engine 16 | 1 1 1 5 1 1 1 1 1 . . . . 3 . . . . . . . . . . . . . . . Core 5 | . . 1 2 1 . . . . 1 . . . . . . . . . . . . . . . . . . . Reactor 16 | . . . . . . . . 1 . . . . 1 . . . 3 . 1 . . 1 . 1 1 1 2 4 Propulsion 57 | 2 1 4 16 2 . 4 3 1 4 . . . . 1 . . 5 . 2 . . . . 2 2 3 1 4 Treads 23 | 2 1 4 15 1 . . . . . . . . . . . . . . . . . . . . . . . . Leg 1 | . . . . . . . . . . . . . . . . . 1 . . . . . . . . . . . Wheel 5 | . . . . . . 2 . . . . . . . . . . . . . . . . . . . . . 3 Hover 2 | . . . . 1 . . . . . . . . . . . . 1 . . . . . . . . . . . Flight 26 | . . . 1 . . 2 3 1 4 . . . . 1 . . 3 . 2 . . . . 2 2 3 1 1 Utility 80 | 3 2 2 3 1 2 7 3 2 5 1 1 3 3 3 . . 6 1 5 . . . . 3 3 8 4 9 Device 40 | 2 1 1 2 . . 3 2 . 2 . . 1 2 3 . . 2 1 2 . . . . 2 2 6 2 4 Storage 4 | 1 1 1 . . . . . . . . . . . . . . . . 1 . . . . . . . . . Processor 13 | . . . . . . 2 1 . 1 . . . . . . . 3 . 1 . . . . . . 1 . 4 Hackware 11 | . . . . . 1 . . . 1 1 . 2 . . . . . . 1 . . . . 1 1 1 2 . Protection 12 | . . . 1 1 1 2 . 2 1 . 1 . 1 . . . 1 . . . . . . . . . . 1 Artifact . | . . . . . . . . . . . . . . . . . . . . . . . . . . . . . Weapon 71 | 2 4 5 14 5 . 9 1 3 2 . 1 2 1 . . . 7 . 1 1 . . . . 5 2 1 5 Energy Gun 8 | . . . 1 1 . . . 2 . . . . . . . . 2 . . 1 . . . . 1 . . . Energy Cannon 14 | . . 2 5 1 . . 1 . . . . . 1 . . . 1 . . . . . . . 2 1 . . Ballistic Gun 28 | 2 3 3 6 2 . 3 . . 1 . 1 1 . . . . 1 . . . . . . . 1 . . 4 Ballistic Cannon 2 | . . . . . . . . . . . . . . . . . 1 . . . . . . . 1 . . . Launcher 7 | . . . 2 1 . . . 1 1 . . . . . . . . . 1 . . . . . . 1 . . Special Weapon 6 | . 1 . . . . 3 . . . . . . . . . . 1 . . . . . . . . . . 1 Impact Weapon 2 | . . . . . . 2 . . . . . . . . . . . . . . . . . . . . . . Slashing Weapon 1 | . . . . . . . . . . . . . . . . . . . . . . . . . . . 1 . Piercing Weapon 1 | . . . . . . . . . . . . . . . . . 1 . . . . . . . . . . . Special Melee Weapon 2 | . . . . . . 1 . . . . . 1 . . . . . . . . . . . . . . . . Unidentified Prototypes 51 | . . . 3 4 . 1 1 1 5 . 2 . 2 . . . 14 . 5 . . 2 . 2 8 1 . . Parts Lost 46 | . . 10 2 . 1 . 1 . . . . . 2 1 . . 1 . 1 . . . . 1 2 9 . 15 Power 9 | . . 2 1 . . . . . . . . . 1 . . . . . . . . . . 1 . 1 . 3 Propulsion 15 | . . 4 1 . . . . . . . . . . 1 . . . . . . . . . . . 3 . 6 Utility 16 | . . 1 . . 1 . 1 . . . . . 1 . . . . . 1 . . . . . 2 4 . 5 Weapon 6 | . . 3 . . . . . . . . . . . . . . 1 . . . . . . . . 1 . 1 Highest Loss Streak 10 | . . 10 1 . 1 . 1 . . . . . 1 1 . . 1 . 1 . . . . 1 2 5 . 10 To Critical Strikes 1 | . . 1 . . . . . . . . . . . . . . . . . . . . . . . . . . Average Backups 12 | 2 10 14 19 19 19 17 3 3 4 5 5 5 5 4 4 5 4 4 5 13 13 13 14 13 13 13 13 5 Power . | . 1 . . 1 1 . . . . . . . . . . . . . . 1 1 1 1 1 . 1 . . Propulsion 3 | . 1 2 4 8 10 8 . . . . . . . . . . 1 1 2 4 4 4 4 3 3 1 . . Utility 4 | . 3 5 5 3 3 4 2 3 4 5 5 5 5 4 4 4 2 3 2 6 6 6 6 6 6 6 5 1 Weapon 2 | . 3 4 7 5 4 2 . . . . . . . . . . . . . 2 2 2 2 2 2 3 5 2 Tool/Special . | . . . . . . . . . . . . . . . . . . . . . . . . . . . . . Unused Backups 73 | 4 2 1 7 8 2 3 4 13 1 . 1 . 11 1 . . 1 . 1 . . 2 1 2 2 1 1 4 Power 6 | . 1 . . . . . . 2 . . . . 2 . . . . . . . . . . . 1 . . . Propulsion 17 | 2 . . 3 4 . . 4 2 . . 1 . 1 . . . . . . . . . . . . . . . Utility 29 | 1 . 1 1 3 . 2 . 5 1 . . . 4 1 . . 1 . 1 . . 2 1 2 . 1 1 1 Weapon 19 | 1 1 . 2 1 2 1 . 4 . . . . 4 . . . . . . . . . . . 1 . . 2 Tool/Special 2 | . . . 1 . . . . . . . . . . . . . . . . . . . . . . . . 1 Average Slot Usage (%) 91 | . 100 98 99 99 100 98 83 79 85 86 86 86 85 87 88 88 90 93 86 84 84 84 84 78 77 70 69 69 Engine 6 | . 14 12 4 3 5 10 6 12 9 6 6 6 10 11 11 11 8 . . . . . . . . . . . Core 2 | . . . 5 7 5 . . . 3 6 6 6 1 . . . . . . . . . . . . . . . Reactor 2 | . . . . . . . . . . . . . . . . . 1 10 9 10 10 10 10 11 10 7 9 11 Treads 14 | . 28 28 32 33 33 18 . . . . . . . . . . . . . . . . . . . . . . Wheel 2 | . . . . . . 9 . . . . . . . . . . . . . . . . . . . . . 6 Flight 12 | . . . . . . 5 38 33 33 33 33 33 33 29 29 29 28 29 24 21 21 21 21 19 19 16 20 4 Device 12 | . 14 13 21 21 5 4 21 18 13 9 6 6 8 17 23 23 17 16 14 15 15 15 15 14 13 7 13 9 Storage 6 | . 14 14 11 11 11 10 . . . . . . . . . . . . 1 5 5 5 5 4 4 4 4 . Processor 3 | . . . . . . . 3 6 6 6 6 6 6 5 5 5 10 11 10 10 10 10 10 9 9 12 13 15 Hackware 5 | . . . . . 9 11 4 . 5 8 13 13 13 11 11 11 11 11 8 5 5 5 5 8 9 7 4 . Protection 3 | . . . . . 6 6 . 1 6 7 6 6 3 4 . . . . 5 5 5 5 5 . . . . 2 Energy Cannon 1 | . . 14 6 . . . . . . . . . . . . . . . . . . . . . . 2 . . Ballistic Gun 10 | . 27 13 14 21 22 15 . . . . . 1 . . . . . . . . . . . . . 3 . 12 Special Weapon 1 | . . . 1 . . . 6 1 5 6 6 4 6 4 5 5 1 . . . . . . . . . . . Peak Build Rating 191 | 7 9 11 28 31 30 37 63 70 81 81 87 85 88 94 92 92 127 125 147 145 141 142 142 150 169 161 150 191 Average Rating 60 | 5 8 8 18 27 28 27 56 56 76 80 81 82 83 93 92 92 95 123 134 141 141 141 142 146 146 150 137 151 On Entrance 84 | . 7 9 8 28 28 29 31 57 67 81 81 82 84 84 92 92 92 124 124 141 141 141 142 142 142 145 115 148 Avg Prop Armor Cover (%) 5 | . . . . . . 5 . . . . . . . . . . . . . . . . . . . . . 18 Naked Turns . | . . . . . . . . . . . . . . . . . . . . . . . . . . . . . Heaviest Build 108 | 12 30 50 60 64 66 66 65 30 34 36 38 33 38 38 37 37 39 37 64 64 64 64 64 64 64 68 56 108 Greatest Support 69 | 40 40 40 66 60 60 60 30 35 38 38 38 38 46 41 46 41 44 48 68 68 68 68 68 68 66 69 64 67 Greatest Overweight (x) 5 | . . 1 1 1 1 5 2 . . . . . . . . 1 . . 1 . . . . . . . . 2 Average Overweight (x) . | . . . . . . 1 . . . . . . . . . . . . . . . . . . . . . . Largest Inventory Capacity 20 | 8 15 20 20 20 20 20 20 5 5 5 5 5 5 5 5 5 5 5 15 15 15 15 15 15 15 15 15 15 Average Capacity 13 | 7 14 19 20 20 20 18 5 5 5 5 5 5 5 5 5 5 5 5 7 15 15 15 15 15 15 15 15 6 Most Carried 20 | 7 15 19 20 20 20 20 20 5 5 5 5 5 5 5 5 5 5 5 15 15 15 15 15 15 15 15 15 15 Average Carried 12 | 2 10 14 19 19 19 17 5 3 4 5 4 5 5 4 4 5 4 5 6 15 15 14 15 14 14 14 14 6 Final Capacity 20 | 8 15 20 20 20 20 20 5 5 5 5 5 5 5 5 5 5 5 5 15 15 15 15 15 15 15 15 15 5 Final Carried 20 | 4 15 12 20 20 20 20 5 5 5 5 5 5 5 4 5 5 5 5 15 15 15 15 15 15 15 15 15 5 Scrap Suit Usage (%) 3 | . . . . . . . . . . . . . . . . . . . . . . . . . . . . 70 Class Distribution -------------------- 40% | Mutant 12% | Scavenger-Scout 11% | Scavenger-Mutant 9% | Scout 6% | Hacker-Scout 6% | Commander-Sprinter 4% | Scavenger-Scrapper Dominant Class ---------------- Mutant | -10/Materials Derelict-Mutant | -10/Mines Scavenger-Mutant | -9/Materials Mutant | -9/Storage Mutant | -9/Recycling Mutant | -9/Scraptown Scout | -6/Factory Scout | -6/Waste Scout | -6/Factory Scout | -6/Extension Commander-Sprinter | -6/Cetus Commander-Sprinter | -6/Archives Hacker-Scout | -6/Hub_04(d) Scavenger-Scout | -5/Factory Hacker-Scout | -5/Upper Caves Hacker-Scout | -5/Upper Caves Hacker-Scout | -5/Warlord Scavenger-Scout | -4/Proximity Caves Scavenger-Scout | -4/Factory Scavenger-Scout | -4/Upper Caves Scavenger-Scout | -4/Upper Caves Scavenger-Scout | -4/Zhirov Scavenger-Scout | -3/Proximity Caves Scavenger-Scout | -3/Research Scavenger-Scout | -3/Testing Hacker-Scout | -2/Research Ninja | -2/Quarantine Scavenger-Scrapper | -2/Protoforge Resources | -11 -10 -10 -9 -9 -9 -9 -6 -6 -6 -6 -6 -6 -6 -5 -5 -5 -5 -4 -4 -4 -4 -4 -3 -3 -3 -2 -2 -2 ----------- Run | Yrd Mat Min Mat Sto Rec Scr Fac Was Fac Ext Cet Arc Hub Fac Upp Upp War Pro Fac Upp Upp Zhi Pro Res Tes Res Qua Frg Matter Collected 7805 | 367 596 350 1100 603 109 282 80 391 185 99 40 265 237 82 13 . 480 54 184 46 34 . 40 . 251 477 130 1310 Remotely . | . . . . . . . . . . . . . . . . . . . . . . . . . . . . . Salvage Created 11319 | 267 567 188 1678 925 250 . 309 565 650 427 . 208 375 112 51 . 880 58 458 36 . . . . 251 530 211 2323 Parts 524 | 20 45 13 97 52 13 . 3 8 10 9 . 10 11 3 . . 22 4 13 . . . . . 14 41 4 132 Haulers Intercepted 25 | . 2 . 6 6 . . . . 4 1 . . 2 1 . . . . 3 . . . . . . . . . Recyclers Shooed 11 | . 1 . 4 5 . . . . . . . . . . . . . . . . . . . . . 1 . . Parts Field Recycled . | . . . . . . . . . . . . . . . . . . . . . . . . . . . . . Retrieved Matter . | . . . . . . . . . . . . . . . . . . . . . . . . . . . . . Parts Self-Destructed 11 | . . . . . . . . . . . . . . . 7 . . 4 . . . . . . . . . . Prevented 3 | . . . . . . . . . . . . . . . . . . . . . . . 3 . . . . . Parts Restored . | . . . . . . . . . . . . . . . . . . . . . . . . . . . . . Kills | -11 -10 -10 -9 -9 -9 -9 -6 -6 -6 -6 -6 -6 -6 -5 -5 -5 -5 -4 -4 -4 -4 -4 -3 -3 -3 -2 -2 -2 ------- Run | Yrd Mat Min Mat Sto Rec Scr Fac Was Fac Ext Cet Arc Hub Fac Upp Upp War Pro Fac Upp Upp Zhi Pro Res Tes Res Qua Frg Combat Hostiles Destroyed 134 | . 9 7 24 14 4 . 3 . 1 2 . . 2 . 1 . 23 1 1 . . . . . 1 10 . 31 Melee 4 | . . . . . . . . . . . . . . . . . . 1 1 . . . . . 1 . . 1 Guns 85 | . 9 5 6 12 4 . . . . . . . . . . . 12 . . . . . . . . 10 . 27 Cannons 20 | . . 2 12 . . . . . . 1 . . 1 . . . 1 . . . . . . . . . . 3 AOE 21 | . . . 6 2 . . 3 . . . . . . . . . 10 . . . . . . . . . . . Classes Destroyed 26 | 3 5 1 4 . 1 . . . . . . . 1 . . . 6 . . . . . . . . . . 5 Worker 19 | 2 1 1 4 4 . . . . 1 . . . 2 . . . . . . . . . . . 2 1 1 . Builder 4 | . . . 1 . . . . . . . . . 1 . . . . . . . . . . . . 1 . 1 Tunneler 18 | 7 4 4 2 . . . . . . . . . . . . . . . . . . . . . . 1 . . Hauler 25 | . 2 . 6 6 . . . . 4 1 . . 2 1 . . . . 3 . . . . . . . . . Recycler 11 | 1 . . 2 1 1 . 1 . 1 1 . . . . . . . . 1 . . . . . 1 . 1 . Mechanic 2 | . . . 1 . . . . . . . . . . . . . . . . . . . . . . . . 1 Operator 13 | . 1 . 1 2 . . . . 1 1 . 5 . . . . . . . . . . . . 1 1 . . Drone 5 | . . . . . . . . . . . . . . . . . . . . . . . . . . . . 5 Watcher 18 | . 3 . 5 . . . 3 . . 2 . . 3 1 . . . . . . . . . . . . 1 . Swarmer 29 | . 3 2 6 4 . . . . . . . . . . . . 1 . . . . . . . . 7 . 6 Cutter 1 | . . . . . . . . . . . . . 1 . . . . . . . . . . . . . . . Saboteur 1 | . . . . . . . . . . . . . . . . . 1 . . . . . . . . . . . Grunt 39 | . 6 . 8 5 . . 3 . . . . . 1 . . . 10 . 1 . . . . . 1 . . 4 Brawler 2 | . . . . . . . . . . . . . . . . . 2 . . . . . . . . . . . Duelist 4 | . . . 1 . . . . . . 1 . . . . . . 2 . . . . . . . . . . . Protector 1 | . . . . . . . . . . . . . . . . . 1 . . . . . . . . . . . Sentry 18 | . . . 9 5 3 . . . . 1 . . . . . . . . . . . . . . . . . . Specialist 1 | . . . . . . . . . . . . . . . . . 1 . . . . . . . . . . . Hunter 8 | . . . . . 1 . . . 1 . . . . . . . 2 . . . . . . . . 2 . 2 Programmer 4 | . . . . . . . . . . . . . . . . . 1 1 . . . . . . . 1 . 1 Overlord 1 | . . . . . . . . . . . . . . . . . . . . . . . . . . . . 1 Striker 10 | . . . . . . . . . . . . . . . . . 2 . . . . . . . . . . 8 Executioner 3 | . . . . . . . . . . . . . . . . . . . . . . . . . . . . 3 Elite 1 | . . . . . . . . . . . . . . . . . . . . . . . . . . . . 1 Scrapoid 2 | . . . . . . . . . . . . . . . . . . . . . . . . . . . . 2 Decomposer 2 | . . . . . . . . . . . . . . . . . . . . 2 . . . . . . . . Assembled 5 | . . 5 . . . . . . . . . . . . . . . . . . . . . . . . . . Butcher 1 | . . . . . . . . . . . . . . . 1 . . . . . . . . . . . . . Guerrilla 1 | . . . . . . . . . . . . 1 . . . . . . . . . . . . . . . . Best Kill Streak 10 | 5 4 3 5 4 1 . 3 . 2 3 . 2 3 1 1 . 5 1 3 . . . . . 3 5 2 10 Combat Bots Only 10 | . 4 3 3 4 1 . 3 . 1 1 . . 1 . 1 . 5 1 1 . . . . . 1 5 . 10 Max Kills in Single Turn 3 | 1 1 2 3 2 1 . 3 . 1 1 . 1 3 1 1 . 3 1 1 1 . . . . 1 1 1 2 Gunslinging . | . . . . . . . . . . . . . . . . . . . . . . . . . . . . . Exploded 3 | . . . 2 2 . . 3 . . . . . . . . . 3 . . . . . . . . . . . Melee 1 | . . . . . . . . . . . . . . . . . . 1 1 . . . . . 1 . . 1 Uniques/NPCs Destroyed . | . . . . . . . . . . . . . . . . . . . . . . . . . . . . . Combat | -11 -10 -10 -9 -9 -9 -9 -6 -6 -6 -6 -6 -6 -6 -5 -5 -5 -5 -4 -4 -4 -4 -4 -3 -3 -3 -2 -2 -2 -------- Run | Yrd Mat Min Mat Sto Rec Scr Fac Was Fac Ext Cet Arc Hub Fac Upp Upp War Pro Fac Upp Upp Zhi Pro Res Tes Res Qua Frg Hostile Shots Fired 847 | . 43 108 100 60 24 . 26 . 4 53 . . 38 8 7 3 21 19 18 . 8 . . 5 28 125 2 147 Missed 343 | . 18 23 32 16 5 . 13 . 2 36 . . 23 3 2 2 9 15 5 . 5 . . 3 13 47 1 70 Hits 504 | . 25 85 68 44 19 . 13 . 2 17 . . 15 5 5 1 12 4 13 . 3 . . 2 15 78 1 77 Melee 9 | . . 9 . . . . . . . . . . . . . . . . . . . . . . . . . . Projectile 495 | . 25 76 68 44 19 . 13 . 2 17 . . 15 5 5 1 12 4 13 . 3 . . 2 15 78 1 77 AOE 17 | . . 10 . . 4 . . . 1 . . . 2 . . . . . . . . . . . . . . . Critical Strikes 21 | . 2 3 1 1 . . . . . . . . . . . . 1 . 1 . . . . . 1 3 . 8 Actively Blocked 9 | . . . . . . . . . . . . . . . . . . . . . . . . . . 1 . 8 Part Disruptions 8 | . . 4 . . . . . . . . . . . . . 3 . . . . . . . . . 1 . . Damage Taken 9916 | . 287 1484 920 528 392 . 134 7 166 142 . . 339 99 76 84 194 75 245 . 63 . . 85 311 1744 . 2541 Core 2027 | . 12 181 123 30 13 . 25 7 23 . . . 100 18 . 21 20 36 18 . 37 . . . . 376 . 987 Absorbed by Shields 25 | . . . . . . . . . . . . . . . . . . . . . . . . . . . . 25 Redirected to Shielding 92 | . . . . . . . . . 33 17 . . 28 14 . . . . . . . . . . . . . . Ignored by Resistances 45 | . . . . 13 32 . . . . . . . . . . . . . . . . . . . . . . . Regen/Repaired (Parts) 411 | . 124 . . . . 89 . 65 41 41 . . . . . . 51 . . . . . . . . . . . Core Remaining (%) 78 | 100 . 22 . . . 58 . . . . . . 81 . . . . 90 . . . . 95 . 100 . . . Volleys Fired 809 | 29 74 34 140 65 14 . 21 34 24 30 3 71 29 18 5 3 59 3 4 1 3 . 2 8 9 69 . 57 Largest 5 | 2 2 2 2 2 2 . 1 2 1 1 1 1 1 1 1 1 2 1 1 1 1 . 1 1 1 2 . 5 Hottest 200 | 40 100 120 128 100 46 . . 80 . . . 33 . . . . 90 58 58 58 58 . 58 58 58 200 . 194 Shots Fired 1303 | 58 141 68 265 127 28 . 21 55 24 30 3 71 29 18 5 3 89 3 4 1 3 . 2 8 9 70 . 168 Gun 869 | 58 134 46 110 124 28 . . 44 . . . 67 . . . . 81 . . . . . . . . 26 . 151 Cannon 251 | . . 22 140 . . . . . . . . . . . . . . 3 4 1 3 . 2 8 9 44 . 15 Launcher 15 | . . . 4 2 . . . 9 . . . . . . . . . . . . . . . . . . . . Special 168 | . 7 . 11 1 . . 21 2 24 30 3 4 29 18 5 3 8 . . . . . . . . . . 2 Kinetic 794 | 58 134 46 110 124 28 . . . . . . 67 . . . . 18 3 4 1 3 . 2 8 9 26 . 153 Thermal 277 | . 7 22 151 1 . . . 44 . . . . . . . . . . . . . . . . . 44 . 8 Explosive 6 | . . . 4 2 . . . . . . . . . . . . . . . . . . . . . . . . Electromagnetic 14 | . . . . . . . . 9 . . . . . . . . . . . . . . . . . . . 5 Impact 147 | . . . . . . . 21 2 24 30 3 4 29 18 5 3 8 . . . . . . . . . . . Entropic 63 | . . . . . . . . . . . . . . . . . 63 . . . . . . . . . . . Robot Hit Streak 20 | 16 11 4 12 12 19 . 3 20 15 7 . 8 8 10 1 . 7 . . . . . . . . 8 . 8 Robot Miss Streak 9 | 3 3 4 7 4 1 . 1 1 2 2 . 4 1 2 3 . 3 . 5 . . . . . . 6 . 9 Penetration Max 2 | . . . . . . . . . . . . 1 . . . . 2 . . . . . . . . 1 . 2 Secondary Targets 6 | . 1 . . . . . . . . . . . . . . . 1 . . . . . . . . . . 4 Max Gunslinging Chain 1 | . 1 . . . . . . . . . . . . . . . 1 . . . . . . . . . . 1 Shots Hit Robots 745 | 37 84 33 155 87 25 1 3 42 17 14 . 57 8 2 1 . 37 1 14 3 . . . . 7 30 6 81 Core Hits 353 | 15 32 17 57 41 10 . 4 6 2 2 . 17 3 2 . . 53 1 5 2 . . . . 4 24 3 53 Critical Kills 18 | . 1 . . . . . . . . 1 . . 1 . . . . . . . . . . . . 9 . 6 Critical Parts Destroyed 35 | . . 1 1 . . . . . 2 1 . 1 1 . 1 . 13 . . . . . . . . 10 . 4 Critical Strikes 59 | . 1 1 1 . . . . . 2 2 . 2 2 . 1 . 13 . 1 . . . . . 1 19 1 12 Destroy 35 | . 1 1 1 . . . . . . . . 1 . . . . . . . . . . . . . 19 . 12 Smash 9 | . . . . . . . . . 2 2 . 1 2 . 1 . 1 . . . . . . . . . . . Impale 3 | . . . . . . . . . . . . . . . . . . . 1 . . . . . 1 . 1 . Detonate 12 | . . . . . . . . . . . . . . . . . 12 . . . . . . . . . . . Melee Attacks 135 | . . . . . . 1 . . . . . 6 . . . . . 2 27 4 5 . 4 15 23 20 15 13 Impact . | . . . . . . . . . . . . . . . . . . . . . . . . . . . . . Slashing 12 | . . . . . . . . . . . . . . . . . . . . . . . . . . . 1 11 Piercing 116 | . . . . . . . . . . . . . . . . . . 2 27 4 5 . 4 15 23 20 14 2 Sneak Attacks 25 | . . . . . . 1 . . . . . 6 . . . . . . 4 3 . . . . 4 1 3 3 Combat Hostiles . | . . . . . . . . . . . . . . . . . . . . . . . . . . . . . Follow-up Attacks . | . . . . . . . . . . . . . . . . . . . . . . . . . . . . . Damage Inflicted 26470 | 398 1035 500 3206 1606 375 . 785 903 1173 1002 . 1594 902 278 57 . 5083 78 1019 270 . . . . 535 551 395 4725 Guns 13646 | 398 1005 278 1088 1330 336 . . 534 . . . 1459 . . . . 2792 . . . . . . . . 251 . 4175 Cannons 2192 | . . 220 1556 . . . . . . . . . . . . . . . 35 . . . . . . 121 . 260 Explosions 4104 | . . . 532 178 . . 504 328 . . . . 248 104 . . 2160 . . . . . . . . 50 . . Melee 2664 | . . . . . . . . . . . . . . . . . . 78 984 270 . . . . 535 129 395 273 Ramming 216 | . 30 2 30 98 39 . . . . . . . . . . . . . . . . . . . . . . 17 Kinetic 10694 | 398 1005 278 1088 1330 336 . . . . . . 1459 . . . . 285 . 35 . . . . . . 251 . 4229 Thermal 5181 | . . 220 1556 . . . 504 534 . . . . . . . . 2160 . . . . . . . . 121 . 86 Explosive 864 | . . . 532 178 . . . . . . . . . 104 . . . . . . . . . . . 50 . . Electromagnetic 696 | . . . . . . . . 328 . . . . 248 . . . . . . . . . . . . . . 120 Impact 3648 | . . . . . . . 281 41 1173 1002 . 135 654 174 57 . 131 . . . . . . . . . . . Slashing 128 | . . . . . . . . . . . . . . . . . . . . . . . . . . . . 128 Piercing 2536 | . . . . . . . . . . . . . . . . . . 78 984 270 . . . . 535 129 395 145 Entropic 2507 | . . . . . . . . . . . . . . . . . 2507 . . . . . . . . . . . Highest Corruption 7 | . . 5 . . . . . . 1 1 1 1 7 2 2 2 2 . . . . . . 1 4 1 1 6 Average Corruption 2 | . . 5 . . . . . . 1 1 1 1 5 1 2 2 2 . . . . . . 1 1 1 1 5 Corruption Purged 1 | . . . . . . . . . . . . 1 . . . . . . . . . . . . . . . . Corruption Blocked . | . . . . . . . . . . . . . . . . . . . . . . . . . . . . . Effects 86 | . . 14 . . . . . . 2 9 . 2 9 1 4 2 . . . . . . . 2 3 2 2 34 Message Errors 21 | . . 3 . . . . . . . 3 . . 3 . 1 . . . . . . . . . . . . 11 Matter Fused 26 | . . 7 . . . . . . 2 2 . . 3 . . 1 . . . . . . . 1 1 1 1 7 Heat Flow Errors 7 | . . . . . . . . . . . . 2 . . . 1 . . . . . . . . 1 . . 3 Energy Discharges 13 | . . . . . . . . . . 1 . . 3 1 . . . . . . . . . . 1 1 1 5 Parts Rejected 1 | . . . . . . . . . . . . . . . . . . . . . . . . . . . . 1 Data Loss (minor) 11 | . . 2 . . . . . . . 2 . . . . 2 . . . . . . . . . . . . 5 Data Loss (major) 5 | . . . . . . . . . . 1 . . . . 1 . . . . . . . . 1 . . . 2 Misfires 1 | . . 1 . . . . . . . . . . . . . . . . . . . . . . . . . . Alerts 1 | . . 1 . . . . . . . . . . . . . . . . . . . . . . . . . . Overload Shots 3 | . . . . . . . . . . . . . . . . . . . . . . . . . . 1 . 2 Effects 1 | . . . . . . . . . . . . . . . . . . . . . . . . . . 1 . . Energy Bleed 1 | . . . . . . . . . . . . . . . . . . . . . . . . . . 1 . . Overflow Damage 2247 | . . . 100 . . . 215 20 388 392 . . 365 18 57 . 165 . 82 45 . . . . 142 32 83 143 Projectiles 1540 | . . . 43 . . . 178 . 388 392 . . 355 . 57 . 97 . . . . . . . . . . 30 Explosions 210 | . . . 57 . . . 37 20 . . . . 10 18 . . 68 . . . . . . . . . . . Melee 497 | . . . . . . . . . . . . . . . . . . . 82 45 . . . . 142 32 83 113 Knockbacks 19 | . . . 1 . 1 . 2 . 6 3 . . 2 . 1 . . . . . . . . . . . . 3 Impact 15 | . . . 1 . 1 . 1 . 6 3 . . 2 . 1 . . . . . . . . . . . . . Kinetic 3 | . . . . . . . . . . . . . . . . . . . . . . . . . . . . 3 Secondary 1 | . . . . . . . 1 . . . . . . . . . . . . . . . . . . . . . Self-Inflicted Damage 116 | . . . . . . . . 7 . . . . 101 . . . . . . . . . . . . . . 8 Shots 2 | . . . . . . . . 1 . . . . 1 . . . . . . . . . . . . . . . Rammed 33 | . 9 1 4 13 4 . . . . . . . . . . . . . . . . . . . . . . 2 Targets Rammed 37 | . 9 1 4 16 5 . . . . . . . . . . . . . . . . . . . . . . 2 Kicked . | . . . . . . . . . . . . . . . . . . . . . . . . . . . . . Crushed 4 | . . . . 3 1 . . . . . . . . . . . . . . . . . . . . . . . Highest Temperature 324 | . 140 302 141 3 3 . 20 231 80 79 37 214 244 4 . 291 324 . 18 18 40 . . . 75 63 . 157 Average Temperature 38 | . 43 67 25 3 3 . 7 33 16 23 13 88 40 2 . 142 58 . 9 9 17 . . . 35 28 . 75 Received Heat Transfer 1266 | . 162 180 351 171 27 . 18 . . 36 . . 24 . . . 45 . 51 . . . . . 33 99 . 69 Effects 4 | . . . . . . . . 1 . . . 1 2 . . . . . . . . . . . . . . . Energy Bleed 2 | . . . . . . . . 1 . . . 1 . . . . . . . . . . . . . . . . Interference 2 | . . . . . . . . . . . . . 2 . . . . . . . . . . . . . . . Siege Activations . | . . . . . . . . . . . . . . . . . . . . . . . . . . . . . Martial Activations . | . . . . . . . . . . . . . . . . . . . . . . . . . . . . . Shielding Activations . | . . . . . . . . . . . . . . . . . . . . . . . . . . . . . Robots Disrupted . | . . . . . . . . . . . . . . . . . . . . . . . . . . . . . Combat Hostiles . | . . . . . . . . . . . . . . . . . . . . . . . . . . . . . Robots Corrupted 19 | . . . . . . . 3 1 5 3 . . 6 . 1 . . . . . . . . . . . . . Combat Hostiles 4 | . . . . . . . . . 1 1 . . 1 . 1 . . . . . . . . . . . . . Parts Fried 33 | . . . . . . . 3 . 13 7 . . 9 . 1 . . . . . . . . . . . . . Impact Corruptions 46 | . . . . . . . 6 . 14 11 . . 12 . 1 . 2 . . . . . . . . . . . Robots Melted . | . . . . . . . . . . . . . . . . . . . . . . . . . . . . . Combat Hostiles . | . . . . . . . . . . . . . . . . . . . . . . . . . . . . . Parts Melted 11 | . . . 7 . . . . . . . . . . . . . 3 . . . . . . . . 1 . . Heat Transferred 6993 | . . 444 3071 . . . 300 1517 . . . . . . . . 1500 . . . . . . . . 111 . 50 Parts Sabotaged . | . . . . . . . . . . . . . . . . . . . . . . . . . . . . . Parts Stolen . | . . . . . . . . . . . . . . . . . . . . . . . . . . . . . Parts Stripped . | . . . . . . . . . . . . . . . . . . . . . . . . . . . . . Power Chain Reactions . | . . . . . . . . . . . . . . . . . . . . . . . . . . . . . Alert | -11 -10 -10 -9 -9 -9 -9 -6 -6 -6 -6 -6 -6 -6 -5 -5 -5 -5 -4 -4 -4 -4 -4 -3 -3 -3 -2 -2 -2 ------- Run | Yrd Mat Min Mat Sto Rec Scr Fac Was Fac Ext Cet Arc Hub Fac Upp Upp War Pro Fac Upp Upp Zhi Pro Res Tes Res Qua Frg Maximum Alert Level 4 | . . . 1 2 . . 2 . 4 3 . . 4 2 . . . . . . . . . . . 2 1 3 Low Security (%) 60 | 100 100 100 57 31 100 . 15 100 15 . 100 100 15 . . . . . 100 . . . . 100 100 67 . 2 Level 1 19 | . . . 42 17 . . 80 . 12 34 . . 2 . . . . . . . . . . . . 18 100 50 Level 2 14 | . . . . 50 . . 4 . 13 61 . . 6 100 . . . . . . . . . . . 14 . 45 Level 3 4 | . . . . . . . . . 54 3 . . 63 . . . . . . . . . . . . . . 1 Level 4 . | . . . . . . . . . 4 . . . 11 . . . . . . . . . . . . . . . Level 5 . | . . . . . . . . . . . . . . . . . . . . . . . . . . . . . High Security . | . . . . . . . . . . . . . . . . . . . . . . . . . . . . . Max Security . | . . . . . . . . . . . . . . . . . . . . . . . . . . . . . Peak Influence 1267 | 20 104 65 260 485 170 . 431 149 1109 762 186 195 1267 687 . . . . 74 . . . . 22 138 621 372 713 Initial 620 | . . . . 78 170 . . 149 . 440 186 57 . 620 . . . . 59 . . . . . . 61 348 153 Average 209 | 2 18 7 157 316 43 . 225 26 656 455 144 71 812 637 . . . . 37 . . . . 4 68 230 333 393 Influence Increases 11997 | 50 332 99 854 1073 290 . 664 2 1494 869 317 244 1665 265 150 45 460 125 215 . 60 . . 96 290 928 86 1324 Destroy 0b10 Robot/C 4340 | . 180 40 480 560 80 . 80 . 660 340 140 80 480 . . . 440 20 20 . . . . . 20 200 . 520 Destroy 0b10 Robot/NC 650 | 50 55 25 110 75 5 . 20 . 50 30 10 25 70 10 . . 5 . 20 . . . . . 20 20 15 35 Destroy Leader 750 | . 50 10 162 154 . . 16 . 130 46 . . 100 4 . . . . 6 . . . . . . 30 2 40 Allied During Kill 1614 | . . . . 185 . . 1 . 487 288 150 105 398 . . . . . . . . . . . . . . . Successful Hack 444 | . 40 . 5 48 25 . 59 . 9 27 . . 22 37 . . . . 12 . . . . 11 20 87 9 33 Select Force Hacks 180 | . . . . . 180 . . . . . . . . . . . . . . . . . . . . . . . Disable Machine 765 | . . . 60 30 . . 150 . 30 45 15 30 120 15 . . . . . . . . . 30 135 30 45 30 Anti-Garrison Action 150 | . . . . . . . . . . . . . . . . . . . . . . . . . . . . 150 Destroy Structure 734 | . 7 9 37 21 . . 53 2 68 18 2 4 115 64 . . . . 22 . . . . 40 20 171 15 66 Partial Spotted 390 | . . . . . . . 15 . . 45 . . 45 75 . . . . 60 . . . . 15 45 60 . 30 Lose Combat Pursuer 1980 | . . 15 . . . . 270 . 60 30 . . 315 60 150 45 15 105 75 . 60 . . . 30 330 . 420 Influence Decreases 11288 | 50 332 99 667 822 728 . 238 428 595 1435 507 387 398 871 386 182 504 274 268 42 60 . . 96 180 417 433 889 Entered New Map 3348 | . . . . 109 268 . . 277 . 459 147 86 . 647 246 82 288 244 36 16 . . . . . 49 273 121 Time Decay 6063 | 50 332 94 647 553 450 . 198 151 275 386 190 281 246 214 140 100 206 30 222 26 60 . . 96 160 278 160 518 Search Patrol Dispatched 100 | . . . . . . . . . . . . . . . . . . . . . . . . . . . . 100 Lost Part 332 | . . . 20 . 10 . 10 . . . . . 12 10 . . 10 . . . . . . . 20 90 . 150 Lost Ally 845 | . . 5 . 160 . . 30 . 170 140 170 20 140 . . . . . 10 . . . . . . . . . Purge Threat 600 | . . . . . . . . . 150 450 . . . . . . . . . . . . . . . . . . Squads Dispatched 81 | . 1 . 4 5 . . 11 . 13 3 . . 9 7 . . . . 5 . . . . 4 4 5 3 7 Investigation 37 | . . . 2 1 . . 7 . 7 3 . . 3 5 . . . . 2 . . . . 2 1 1 1 2 Extermination 14 | . . . . . . . 1 . 1 . . . 1 1 . . . . 1 . . . . 1 2 3 2 1 Reinforcement 22 | . 1 . 2 2 . . 3 . 2 . . . 4 1 . . . . 2 . . . . 1 1 1 . 2 Assault 3 | . . . . 1 . . . . . . . . . . . . . . . . . . . . . . . 2 Garrison 5 | . . . . 1 . . . . 3 . . . 1 . . . . . . . . . . . . . . . Intercept . | . . . . . . . . . . . . . . . . . . . . . . . . . . . . . Searches Triggered 1 | . . . . . . . . . . . . . . . . . . . . . . . . . . . . 1 Construction Impeded 2 | . . . . . . . 1 . . . . . 1 . . . . . . . . . . . . . . . Haulers Reinforced 4 | . . . . . . . . . 1 . . . 1 . . . . . 1 . . . . 1 . . . . Active Scanning Responses . | . . . . . . . . . . . . . . . . . . . . . . . . . . . . . Cargo Convoy Interrupts . | . . . . . . . . . . . . . . . . . . . . . . . . . . . . . Stealth | -11 -10 -10 -9 -9 -9 -9 -6 -6 -6 -6 -6 -6 -6 -5 -5 -5 -5 -4 -4 -4 -4 -4 -3 -3 -3 -2 -2 -2 --------- Run | Yrd Mat Min Mat Sto Rec Scr Fac Was Fac Ext Cet Arc Hub Fac Upp Upp War Pro Fac Upp Upp Zhi Pro Res Tes Res Qua Frg Distress Signals 32 | . 2 . 3 4 . . 2 . 3 1 2 . 2 . . . 1 . 1 . . . . 3 . 2 . 6 Communications Jammed 7 | . . . . . . . . . . . . . . . . . . . . . . . . . . 1 . 6 Distress Signals 7 | . . . . . . . . . . . . . . . . . . . . . . . . . . 1 . 6 Times Spotted 545 | . 21 48 42 38 5 . 25 1 18 22 10 31 40 9 13 3 35 11 18 . 4 . . 3 15 56 3 74 Peak Tracking Total 19 | . 5 19 5 5 2 . 10 1 5 4 5 1 11 3 5 4 8 8 8 . 4 . . 3 7 15 2 13 Tactical Retreats 56 | . . 4 . . . . 7 . 1 2 . . 7 3 4 1 1 3 3 . 1 . . . 1 7 . 11 Traps | -11 -10 -10 -9 -9 -9 -9 -6 -6 -6 -6 -6 -6 -6 -5 -5 -5 -5 -4 -4 -4 -4 -4 -3 -3 -3 -2 -2 -2 ------- Run | Yrd Mat Min Mat Sto Rec Scr Fac Was Fac Ext Cet Arc Hub Fac Upp Upp War Pro Fac Upp Upp Zhi Pro Res Tes Res Qua Frg Traps Triggered 15 | . . . 1 . . . 1 . 3 2 . . 1 1 . 1 . . . . . . . . . 1 2 2 Indirectly . | . . . . . . . . . . . . . . . . . . . . . . . . . . . . . Trap Hack Attempts . | . . . . . . . . . . . . . . . . . . . . . . . . . . . . . Triggered . | . . . . . . . . . . . . . . . . . . . . . . . . . . . . . Disarmed . | . . . . . . . . . . . . . . . . . . . . . . . . . . . . . Reprogrammed . | . . . . . . . . . . . . . . . . . . . . . . . . . . . . . Reused . | . . . . . . . . . . . . . . . . . . . . . . . . . . . . . Traps Extracted . | . . . . . . . . . . . . . . . . . . . . . . . . . . . . . Installed . | . . . . . . . . . . . . . . . . . . . . . . . . . . . . . Triggered . | . . . . . . . . . . . . . . . . . . . . . . . . . . . . . Machines | -11 -10 -10 -9 -9 -9 -9 -6 -6 -6 -6 -6 -6 -6 -5 -5 -5 -5 -4 -4 -4 -4 -4 -3 -3 -3 -2 -2 -2 ---------- Run | Yrd Mat Min Mat Sto Rec Scr Fac Was Fac Ext Cet Arc Hub Fac Upp Upp War Pro Fac Upp Upp Zhi Pro Res Tes Res Qua Frg Machines Disabled 55 | . . . 4 2 . . 10 . 2 3 1 2 8 1 . . 2 . . . . . . 2 10 2 3 3 Max in Single Turn 7 | . . . 1 1 . . 7 . 1 1 1 1 6 1 . . 1 . . . . . . 1 1 1 1 1 Garrison Access 8 | . . . . 1 . . . . 1 . . . 1 . . . . . 1 . . . . 1 1 . 1 1 Network Hub 2 | . . . . . . . . . . . . . 2 . . . . . . . . . . . . . . . Machines Repaired . | . . . . . . . . . . . . . . . . . . . . . . . . . . . . . Machines Dismantled 1 | . . . . . . . . . . . . . . . . . 1 . . . . . . . . . . . Machines Sabotaged . | . . . . . . . . . . . . . . . . . . . . . . . . . . . . . Overloaded Fab Kills . | . . . . . . . . . . . . . . . . . . . . . . . . . . . . . Hacking | -11 -10 -10 -9 -9 -9 -9 -6 -6 -6 -6 -6 -6 -6 -5 -5 -5 -5 -4 -4 -4 -4 -4 -3 -3 -3 -2 -2 -2 --------- Run | Yrd Mat Min Mat Sto Rec Scr Fac Was Fac Ext Cet Arc Hub Fac Upp Upp War Pro Fac Upp Upp Zhi Pro Res Tes Res Qua Frg Machines Accessed 179 | . 10 . 12 12 13 3 21 . 16 18 1 . 8 14 . 1 4 . 10 1 2 4 . 5 6 8 5 5 Terminals 101 | . 7 . 8 11 6 . 10 . 8 16 1 . 7 7 . . . . 4 . . . . 1 4 6 3 2 Fabricators 3 | . . . . . . . . . 1 . . . . . . . . . 1 . . . . . . 1 . . Repair Stations 3 | . 1 . 1 . . . 1 . . . . . . . . . . . . . . . . . . . . . Recycling Units 36 | . 2 . 1 . 7 . 7 . 5 2 . . . 5 . . . . 2 . . . . 2 . 1 . 2 Scanalyzers 11 | . . . 2 . . . 2 . 1 . . . . 1 . . . . 2 . . . . 1 1 . 1 . Garrison Access 10 | . . . . 1 . . 1 . 1 . . . 1 1 . . . . 1 . . . . 1 1 . 1 1 Total Hacks 476 | . 29 . 33 31 27 31 42 . 40 47 3 . 20 51 . 1 6 . 24 1 4 17 . 13 10 22 9 15 Successful 256 | . 15 . 18 13 18 31 14 . 19 24 . . 9 25 . 1 6 . 12 1 4 17 . 9 5 8 4 3 Failed 216 | . 14 . 15 18 9 . 28 . 21 22 3 . 11 25 . . . . 11 . . . . 3 5 14 5 12 Catastrophic 26 | . 1 . 3 2 1 . 2 . 2 2 1 . 2 3 . . . . 1 . . . . . . 2 3 1 Database Lockouts 4 | . . . . . . . . . . 1 . . . 1 . . . . 1 . . . . 1 . . . . Manual 262 | . 19 . 15 20 19 . 30 . 29 29 1 . 10 36 . . . . 16 . . . . 4 2 16 6 10 Terminals 284 | . 22 . 21 29 11 . 23 . 24 45 3 . 18 36 . . . . 12 . . . . 3 7 19 7 4 Fabricators 7 | . . . . . . . . . 4 . . . . . . . . . 1 . . . . . . 2 . . Repair Stations 6 | . 2 . 2 . . . 2 . . . . . . . . . . . . . . . . . . . . . Recycling Units 63 | . 5 . 1 . 16 . 12 . 7 2 . . . 7 . . . . 4 . . . . 2 . 1 . 6 Scanalyzers 32 | . . . 9 . . . 3 . 3 . . . . 3 . . . . 6 . . . . 5 2 . 1 . Garrison Access 24 | . . . . 2 . . 2 . 2 . . . 2 5 . . . . 1 . . . . 3 1 . 1 5 Terminal Hacks 133 | . 4 . 4 9 . 31 4 . 5 18 . . 3 15 . 1 6 . 4 1 4 17 . 1 3 1 2 . Record 44 | . . . . . . 31 . . . . . . . . . . 5 . . . 3 5 . . . . . . Part Schematic 6 | . . . . 1 . . . . . 1 . . . . . . . . . . . 4 . . . . . . Robot Analysis 6 | . 1 . . . . . . . . . . . . . . . . . . . . 4 . . 1 . . . Prototype ID Bank 11 | . 1 . . . . . 1 . . 2 . . . 3 . . . . . . . 4 . . . . . . Open Door 15 | . . . . 4 . . . . 1 6 . . . . . 1 1 . . 1 1 . . . . . . . Level Access Points 1 | . . . . . . . . . . . . . 1 . . . . . . . . . . . . . . . Branch Access Points 3 | . . . . . . . . . 1 . . . . 1 . . . . 1 . . . . . . . . . Machine Index 1 | . . . . . . . . . . . . . . 1 . . . . . . . . . . . . . . Terminal Index 11 | . 1 . 1 1 . . 1 . 1 . . . 1 1 . . . . 1 . . . . . 1 1 1 . Recycling Unit Index 1 | . . . . . . . . . . . . . . 1 . . . . . . . . . . . . . . Alert Level 10 | . . . 2 1 . . . . 1 2 . . . 1 . . . . . . . . . 1 1 . 1 . Unreport Threat 4 | . . . . . . . . . 1 3 . . . . . . . . . . . . . . . . . . Locate Traps 6 | . 1 . 1 1 . . 1 . . 1 . . . 1 . . . . . . . . . . . . . . Recall Investigation 2 | . . . . . . . . . . 1 . . . 1 . . . . . . . . . . . . . . Recall Extermination 2 | . . . . . . . . . . . . . . 1 . . . . 1 . . . . . . . . . Recall Reinforcements 2 | . . . . 1 . . . . . 1 . . . . . . . . . . . . . . . . . . Hauler Manifests 4 | . . . . . . . . . . 1 . . . 2 . . . . 1 . . . . . . . . . Registered Components 3 | . . . . . . . 1 . . . . . 1 1 . . . . . . . . . . . . . . Registered Prototypes 1 | . . . . . . . . . . . . . . 1 . . . . . . . . . . . . . . Fabricator Hacks 3 | . . . . . . . . . 1 . . . . . . . . . 1 . . . . . . 1 . . Network Status 3 | . . . . . . . . . 1 . . . . . . . . . 1 . . . . . . 1 . . Repair Station Hacks 4 | . 2 . 1 . . . 1 . . . . . . . . . . . . . . . . . . . . . Scan Component 2 | . 1 . 1 . . . . . . . . . . . . . . . . . . . . . . . . . Repair 1 | . 1 . . . . . . . . . . . . . . . . . . . . . . . . . . . Refit 1 | . . . . . . . 1 . . . . . . . . . . . . . . . . . . . . . Recycling Unit Hacks 9 | . 2 . 1 . 6 . . . . . . . . . . . . . . . . . . . . . . . Retrieve Components 9 | . 2 . 1 . 6 . . . . . . . . . . . . . . . . . . . . . . . Scanalyzer 20 | . . . 9 . . . 2 . 3 . . . . 1 . . . . 1 . . . . 3 1 . . . Insert Component 5 | . . . 3 . . . 1 . 1 . . . . . . . . . . . . . . . . . . . Analyze 3 | . . . 2 . . . . . 1 . . . . . . . . . . . . . . . . . . . Retrieve Study 12 | . . . 4 . . . 1 . 1 . . . . 1 . . . . 1 . . . . 3 1 . . . Garrison Access Hacks 7 | . . . . 1 . . . . 1 . . . 1 . . . . . 1 . . . . 1 1 . 1 . Seal Access 7 | . . . . 1 . . . . 1 . . . 1 . . . . . 1 . . . . 1 1 . 1 . Unauthorized Hacks 80 | . 7 . 3 3 12 . 7 . 9 6 . . 5 9 . . . . 5 . . . . 4 . 6 1 3 Terminals 48 | . 7 . 3 3 6 . 2 . 3 4 . . 5 3 . . . . 3 . . . . 2 . 4 1 2 Track 2 | . . . . . . . . . . . . . . . . . . . 1 . . . . . . . . 1 Assimilate 8 | . . . 1 . . . 1 . 1 2 . . . . . . . . 1 . . . . . . 1 . 1 Botnet 18 | . 1 . 1 2 1 . 1 . 1 2 . . 1 2 . . . . 1 . . . . 1 . 3 1 . Operators 7 | . 1 . 1 1 . . . . 1 . . . 1 1 . . . . . . . . . 1 . . . . Skim 10 | . 5 . . . 5 . . . . . . . . . . . . . . . . . . . . . . . Sabotage 3 | . . . . . . . . . . . . . 3 . . . . . . . . . . . . . . . Fabricators 2 | . . . . . . . . . 1 . . . . . . . . . . . . . . . . 1 . . Report 1 | . . . . . . . . . 1 . . . . . . . . . . . . . . . . . . . Liberate 1 | . . . . . . . . . . . . . . . . . . . . . . . . . . 1 . . Repair Stations . | . . . . . . . . . . . . . . . . . . . . . . . . . . . . . Recycling Units 29 | . . . . . 6 . 5 . 5 2 . . . 5 . . . . 2 . . . . 2 . 1 . 1 Tunnel 6 | . . . . . 6 . . . . . . . . . . . . . . . . . . . . . . . Fedlink 23 | . . . . . . . 5 . 5 2 . . . 5 . . . . 2 . . . . 2 . 1 . 1 Scanalyzers . | . . . . . . . . . . . . . . . . . . . . . . . . . . . . . Garrison Access 1 | . . . . . . . . . . . . . . 1 . . . . . . . . . . . . . . Reprogram 1 | . . . . . . . . . . . . . . 1 . . . . . . . . . . . . . . Data Cores Recovered 1 | . . . . . . . . . . . . . . . . . . . . . . . . . . 1 . . Used . | . . . . . . . . . . . . . . . . . . . . . . . . . . . . . Hacking Detections 105 | . 9 . 11 8 11 . 17 . 9 10 1 . 5 5 . . . . 4 . . . . 1 4 5 3 2 Full Trace Events 7 | . . . 2 . 1 . 2 . 1 . . . . . . . . . . . . . . . . . . 1 Feedback Events 1 | . . . . . . . 1 . . . . . . . . . . . . . . . . . . . . . Hackware Fried 1 | . . . . . . . 1 . . . . . . . . . . . . . . . . . . . . . Feedback Blocked . | . . . . . . . . . . . . . . . . . . . . . . . . . . . . . Robot Schematics Acquired . | . . . . . . . . . . . . . . . . . . . . . . . . . . . . . Robots Built . | . . . . . . . . . . . . . . . . . . . . . . . . . . . . . Authchips . | . . . . . . . . . . . . . . . . . . . . . . . . . . . . . Time . | . . . . . . . . . . . . . . . . . . . . . . . . . . . . . Total Robot Build Rating . | . . . . . . . . . . . . . . . . . . . . . . . . . . . . . Part Schematics Acquired 8 | . . . 1 1 . . . . 1 1 . . . . . . . . . . . 4 . . . . . . Parts Built . | . . . . . . . . . . . . . . . . . . . . . . . . . . . . . Authchips . | . . . . . . . . . . . . . . . . . . . . . . . . . . . . . Time . | . . . . . . . . . . . . . . . . . . . . . . . . . . . . . Total Part Build Rating . | . . . . . . . . . . . . . . . . . . . . . . . . . . . . . Part Studies Acquired 12 | . . . 4 . . . 1 . 1 . . . . 1 . . . . 1 . . . . 3 1 . . . Parts Repaired 1 | . 1 . . . . . . . . . . . . . . . . . . . . . . . . . . . Time 26 | . 26 . . . . . . . . . . . . . . . . . . . . . . . . . . . Parts Recycled . | . . . . . . . . . . . . . . . . . . . . . . . . . . . . . Recycled Matter . | . . . . . . . . . . . . . . . . . . . . . . . . . . . . . Retrieved Matter . | . . . . . . . . . . . . . . . . . . . . . . . . . . . . . Retrieved Components 41 | . 11 . 9 . 21 . . . . . . . . . . . . . . . . . . . . . . . Parts Scanalyzed 3 | . . . 2 . . . . . 1 . . . . . . . . . . . . . . . . . . . Part Schematics Acquired 2 | . . . 1 . . . . . 1 . . . . . . . . . . . . . . . . . . . Parts Damaged . | . . . . . . . . . . . . . . . . . . . . . . . . . . . . . Bothacking | -11 -10 -10 -9 -9 -9 -9 -6 -6 -6 -6 -6 -6 -6 -5 -5 -5 -5 -4 -4 -4 -4 -4 -3 -3 -3 -2 -2 -2 ------------ Run | Yrd Mat Min Mat Sto Rec Scr Fac Was Fac Ext Cet Arc Hub Fac Upp Upp War Pro Fac Upp Upp Zhi Pro Res Tes Res Qua Frg Used RIF Installer . | . . . . . . . . . . . . . . . . . . . . . . . . . . . . . Robots Hacked 4 | . . . . . . 1 . . . . . 3 . . . . . . . . . . . . . . . . Non-combat 1 | . . . . . . . . . . . . 1 . . . . . . . . . . . . . . . . Combat 3 | . . . . . . 1 . . . . . 2 . . . . . . . . . . . . . . . . Robot Hacks Applied 6 | . . . . . . 1 . . . . . 5 . . . . . . . . . . . . . . . . parse_system 5 | . . . . . . 1 . . . . . 4 . . . . . . . . . . . . . . . . check_alert 1 | . . . . . . . . . . . . 1 . . . . . . . . . . . . . . . . Relay Couplers Released 1 | . . . . . . . . . . . . . . . . . . . . . . . . . . . . 1 Machine Destruction 1 | . . . . . . . . . . . . . . . . . . . . . . . . . . . . 1 Fabnet Peak Effective % . | . . . . . . . . . . . . . . . . . . . . . . . . . . . . . Robots Rewired 14 | . . 1 . . 2 . . . . 11 . . . . . . . . . . . . . . . . . . Allies Hacked . | . . . . . . . . . . . . . . . . . . . . . . . . . . . . . Hacks Repelled . | . . . . . . . . . . . . . . . . . . . . . . . . . . . . . Allies | -11 -10 -10 -9 -9 -9 -9 -6 -6 -6 -6 -6 -6 -6 -5 -5 -5 -5 -4 -4 -4 -4 -4 -3 -3 -3 -2 -2 -2 -------- Run | Yrd Mat Min Mat Sto Rec Scr Fac Was Fac Ext Cet Arc Hub Fac Upp Upp War Pro Fac Upp Upp Zhi Pro Res Tes Res Qua Frg Total Allies 64 | . . 1 . 10 2 . 1 21 1 22 5 . . . . . . . 1 . . . . . . . . . Largest Group 21 | . . . . 10 2 2 2 21 21 19 19 12 9 . . . . . 1 . . . . . . . . . Highest-Rated Group 1063 | . . . . 88 61 61 61 883 883 767 1063 865 630 . . . . . 10 . . . . . . . . . Highest-Rated Ally 159 | . . . . 16 34 34 34 133 133 159 159 153 97 . . . . . 10 . . . . . . . . . Initial UFD Resources 127 | . . . . . . . 22 42 42 52 56 56 56 60 80 80 80 84 84 98 98 98 101 101 115 117 127 127 Total Orders 19 | . . . . . . 2 . . . . 10 2 5 . . . . . . . . . . . . . . . STAY 12 | . . . . . . 1 . . . . 6 1 4 . . . . . . . . . . . . . . . ROAM 3 | . . . . . . . . . . . 3 . . . . . . . . . . . . . . . . . FOLLOW 4 | . . . . . . 1 . . . . 1 1 1 . . . . . . . . . . . . . . . Ally Attacks 587 | . . 2 . 104 . . 5 17 178 84 95 37 65 . . . . . . . . . . . . . . . Total Damage 15724 | . . 195 . 986 . . 249 264 5244 1522 2453 1084 3727 . . . . . . . . . . . . . . . Kills 120 | . . 3 . 18 . . 1 1 37 16 11 4 29 . . . . . . . . . . . . . . . Allies Corrupted 1 | . . . . . . . . . . . . . 1 . . . . . . . . . . . . . . . Allies Melted 3 | . . . . . . . . . . 1 . . 2 . . . . . . . . . . . . . . . Intel | -11 -10 -10 -9 -9 -9 -9 -6 -6 -6 -6 -6 -6 -6 -5 -5 -5 -5 -4 -4 -4 -4 -4 -3 -3 -3 -2 -2 -2 ------- Run | Yrd Mat Min Mat Sto Rec Scr Fac Was Fac Ext Cet Arc Hub Fac Upp Upp War Pro Fac Upp Upp Zhi Pro Res Tes Res Qua Frg Active Infowar (turns) 21254 | 151 1624 792 3044 1584 680 1988 454 861 683 915 398 906 506 449 296 201 725 80 472 322 196 62 769 408 323 606 330 1429 Optics 5096 | . . . . . . . . . . . . . . . . . 99 80 472 322 196 62 769 408 323 606 330 1429 Sensors 10630 | . . . . . . 869 428 861 683 915 398 906 506 449 296 201 725 72 466 322 196 59 769 407 313 338 230 221 Terrain 8 | . . . . . . . . . . . . . . . . . . . . . . . . . . 8 . . Structural 8222 | . . . . . . 1119 183 816 664 464 . . 207 449 296 201 725 80 470 322 196 62 769 408 310 51 181 249 Seismic 9071 | 151 1624 792 3044 1584 680 . . . . . . . . 24 296 201 675 . . . . . . . . . . . Cloaking 126 | . . . . . . . . . . . . . . . . . . . . . . . . . . 10 96 20 Jamming 220 | . . . . . . . . . . . . . . . . . . . . . . . . . 5 85 104 26 Robot Analysis Total 5 | . 1 . . . . . . . . . . . . . . . . . . . . 4 . . . . . . Derelict Logs Recovered 8 | . . . . . . . . . . . . . . . 3 2 . . . 2 1 . . . . . . . Drone Launches . | . . . . . . . . . . . . . . . . . . . . . . . . . . . . . Drone Recoveries . | . . . . . . . . . . . . . . . . . . . . . . . . . . . . . Exploration | -11 -10 -10 -9 -9 -9 -9 -6 -6 -6 -6 -6 -6 -6 -5 -5 -5 -5 -4 -4 -4 -4 -4 -3 -3 -3 -2 -2 -2 ------------- Run | Yrd Mat Min Mat Sto Rec Scr Fac Was Fac Ext Cet Arc Hub Fac Upp Upp War Pro Fac Upp Upp Zhi Pro Res Tes Res Qua Frg Turns Passed 25548 | 271 1624 844 3263 1619 1783 4682 454 918 683 915 398 906 520 449 296 201 725 80 472 322 196 62 769 408 323 606 330 1429 Spaces Moved 25801 | 91 749 289 1493 687 807 3139 1207 1805 1440 1119 249 187 1218 1124 483 587 1245 239 959 715 440 164 491 763 668 1070 953 1420 Core 67 | 3 . . . . . . . . . . . . . . . . . . . . . . . . . . . 64 Treads 5096 | 88 749 289 1493 687 807 983 . . . . . . . . . . . . . . . . . . . . . . Legs . | . . . . . . . . . . . . . . . . . . . . . . . . . . . . . Wheels 2344 | . . . . . . 1588 . . . . . . . . . . . . . . . . . . . . . 756 Hover . | . . . . . . . . . . . . . . . . . . . . . . . . . . . . . Flight 18294 | . . . . . . 568 1207 1805 1440 1119 249 187 1218 1124 483 587 1245 239 959 715 440 164 491 763 668 1070 953 600 Fastest Speed 14 | 50 160 160 160 170 170 34 25 25 24 24 24 24 14 24 19 26 24 18 25 31 31 31 31 31 29 24 25 21 Average Speed 66 | 156 160 239 161 170 211 140 25 27 25 24 24 24 23 24 25 26 25 23 27 31 31 31 31 31 29 28 25 59 Slowest Speed 250 | 160 160 240 240 250 250 250 165 28 28 24 24 24 24 26 26 100 29 25 97 31 31 31 31 31 31 29 27 90 Overloaded Moves 192 | . . . . . . . . . . . . . 29 . 41 . . 60 . . . . . . . 53 . 9 Propulsion Burnouts . | . . . . . . . . . . . . . . . . . . . . . . . . . . . . . Robots Hopped 114 | . . . . . . . 20 4 15 10 . . 15 2 . . 2 . 5 . . . . 2 7 22 6 4 Potential Cave-ins 7 | . . . . . . . . . . . . . . . . . 1 . . . . . . . . 3 . 3 Cave-ins Triggered 1 | . . . . . . . . . . . . . . . . . . . . . . . . . . . . 1 Teleports 1 | . . . . . . . . . . . . . . . . . . . . . . . . . . 1 . . Exploration Rate (%) 64 | 3 96 70 86 94 98 86 31 96 33 81 67 72 68 33 70 76 84 55 22 70 79 61 77 23 78 34 82 49 Regions Visited 28 Branch Regions 19 Pre-discovered Areas 19 | . 1 . . 1 7 4 1 . . . . . . . 1 . . . . 1 . 3 . . . . . . Known Exits Taken 21 | . . 1 . 1 . . . . 1 1 1 1 1 1 1 1 1 1 1 1 1 1 1 1 1 1 1 . Unknown Exits Taken 5 | 1 1 . 1 . 1 1 . . . . . . . . . . . . . . . . . . . . . . Scrap Searched 21 | . . 1 . . . 5 . . . . . . . . 4 3 . 1 . 1 3 . 3 . . . . . Spaces Dug 177 | . 4 . 12 11 . . 12 . 2 7 . . 10 10 . 2 3 4 10 1 5 . 6 17 10 34 5 12 Terrain Destroyed 568 | . 7 . 40 19 . . 46 1 6 12 . . 185 31 2 3 51 4 11 2 8 . 6 21 11 70 5 27 Melee 69 | . . . . . . . . . . . . . . . . . . 1 9 1 5 . 4 14 6 15 5 9 Projectile 196 | . 7 . 9 . . . 14 1 6 12 . . 18 14 2 3 28 3 2 1 3 . 2 7 5 41 . 18 AOE 298 | . . . 31 19 . . 32 . . . . . 167 17 . . 23 . . . . . . . . 9 . . Terrain Rammed . | . . . . . . . . . . . . . . . . . . . . . . . . . . . . . Walls Destroyed . | . . . . . . . . . . . . . . . . . . . . . . . . . . . . . Machines Disabled . | . . . . . . . . . . . . . . . . . . . . . . . . . . . . . Actions | -11 -10 -10 -9 -9 -9 -9 -6 -6 -6 -6 -6 -6 -6 -5 -5 -5 -5 -4 -4 -4 -4 -4 -3 -3 -3 -2 -2 -2 --------- Run | Yrd Mat Min Mat Sto Rec Scr Fac Was Fac Ext Cet Arc Hub Fac Upp Upp War Pro Fac Upp Upp Zhi Pro Res Tes Res Qua Frg Total 32612 | 166 1026 372 2060 997 849 3436 1321 2181 1714 1723 585 978 1399 1282 649 630 1548 254 1120 807 488 173 1099 902 740 1244 1006 1863 Wait 4850 | 26 164 13 300 175 3 165 79 263 222 463 323 702 145 128 161 41 152 5 93 86 41 . 601 100 19 56 10 314 Move 25556 | 90 748 288 1492 686 806 3138 1168 1798 1409 1098 248 186 1188 1119 482 586 1241 238 948 714 439 163 490 758 653 1031 940 1411 Hop 103 | . . . . . . . 19 2 15 10 . . 14 2 . . 1 . 5 . . . . 2 7 16 6 4 Pick Up 194 | 9 15 10 25 16 5 32 . 24 5 . 2 . . 2 1 . 9 . 11 . . 3 1 5 2 10 4 3 Fast Attach 161 | 6 1 1 9 1 . 20 7 8 9 . 3 6 7 3 . . 29 1 9 1 . 2 . 2 8 6 4 18 Attach 76 | 1 1 11 3 . 1 8 8 6 1 . . . . 3 . . 5 . 3 . . . . . 1 12 2 10 Detach 32 | . . . . . . 7 2 4 . . . . . 1 . . 1 . 3 . . . . . 3 4 . 7 Swap 184 | 1 7 7 46 20 2 10 . 2 12 3 1 1 10 2 . . 4 4 5 . . 2 . 5 6 13 13 8 Drop 326 | 4 7 4 41 18 4 55 17 40 17 . 5 6 6 4 . . 37 1 12 1 . 3 1 7 9 7 6 14 Fire 809 | 29 74 34 140 65 14 . 21 34 24 30 3 71 29 18 5 3 59 3 4 1 3 . 2 8 9 69 . 57 Melee 135 | . . . . . . 1 . . . . . 6 . . . . . 2 27 4 5 . 4 15 23 20 15 13 Ram 2 | . . . . . . . . . . . . . . . . . . . . . . . . . . . . 2 Kick . | . . . . . . . . . . . . . . . . . . . . . . . . . . . . . Crush 35 | . 9 1 4 16 5 . . . . . . . . . . . . . . . . . . . . . . . Escape Stasis 38 | . . . . . . . . . . 30 . . . . . . . . . . . . . . . . 6 2 Rewire 101 | . . 3 . . 9 . . . . 89 . . . . . . . . . . . . . . . . . . Trap . | . . . . . . . . . . . . . . . . . . . . . . . . . . . . . Miscellaneous 10 | . . . . . . . . . . . . . . . . . 10 . . . . . . . . . . . Route ------- -11/Scrapyard -10/Materials (discovered 5 exits: *Mat x3 / [*Min] / *Sub) -10/Mines (discovered 2 exits: *Mat x2) -9/Materials (discovered 4 exits: [*Mat x2] / [*Min] / *Sto) -9/Storage (discovered 2 exits: [*Mat] / *Rec) -9/Recycling (discovered 2 exits: *Fac / *Scr) -9/Scraptown (discovered 2 exits: *Fac x2) -6/Factory (discovered 7 exits: Fac x3 / *Low x2 / Ext x2) -6/Waste -6/Factory (discovered 5 exits: *Fac / *Low x2 / *Ext x2) -6/Extension (discovered 2 exits: *Fac / *Cet) -6/Cetus (discovered 2 exits: *Fac / *Arc) -6/Archives (discovered 2 exits: *Fac / *Hub) -6/Hub_04(d) (discovered 4 exits: *Fac x4) -5/Factory (discovered 5 exits: *Fac x3 / *Upp x2) -5/Upper Caves -5/Upper Caves (discovered 2 exits: *Fac / *War) -5/Warlord -4/Proximity Caves -4/Factory (discovered 3 exits: *Upp x2 / Arm) -4/Upper Caves -4/Upper Caves (discovered 2 exits: *Res / *Zhi) -4/Zhirov -3/Proximity Caves -3/Research (discovered 3 exits: Res / *Tes x2) -3/Testing -2/Research (discovered 3 exits: *Acc x2 / *Qua) -2/Quarantine (discovered 3 exits: *Acc / *Sec / *Frg) -2/Protoforge History --------- Turn | Location | Event 17 | -11/Scrapyard | Discovered new exit (range 15) 272 | -11/Scrapyard | Entered Materials 313 | -10/Materials | Build established: Mutant 709 | -10/Materials | Learned Storage trap positions 720 | -10/Materials | Discovered new exit (range 6) 739 | -10/Materials | Identified exit to Materials 758 | -10/Materials | Learned location of 2 exits from Subcaves 765 | -10/Materials | Learned location of 1 exit from Storage 767 | -10/Materials | Learned 4 Subcaves zone layouts 768 | -10/Materials | Learned 4 Recycling zone layouts 770 | -10/Materials | Identified exit to Subcaves 778 | -10/Materials | Learned location of Storage (-9) 1049 | -10/Materials | Discovered new exit (range 15) 1611 | -10/Materials | Repaired Lgt. Treads 1896 | -10/Materials | Entered Mines 2116 | -10/Mines | Found DCF Scrap (15 items) 2117 | -10/Mines | Assembled infested the area 2122 | -10/Mines | Assisted by a Guerilla fighting off Assembled 2249 | -10/Mines | Core integrity fell below 50% 2283 | -10/Mines | Lost 10 parts (2p4n1u3w) 2397 | -10/Mines | Received a Rocket Launcher from a helpful Derelict 2603 | -10/Mines | Build established: Derelict-Mutant 2740 | -10/Mines | Entered Materials 2740 | -9/Materials | Evolved 2 slots: Propulsion x1, Utility x1 2757 | -9/Materials | Discovered new exit (range 8) 3046 | -9/Materials | Build established: Scavenger-Mutant 3483 | -9/Materials | Discovered new exit (range 16) 3950 | -9/Materials | Discovered new exit (range 4) 5020 | -9/Materials | Discovered new exit (range 7) 5939 | -9/Materials | Build established: Mutant 6003 | -9/Materials | Entered Storage 6004 | -9/Storage | Identified exit to Recycling 6005 | -9/Storage | Loaded intel: 23 trap records 6394 | -9/Storage | Assisted by bots powering up and referring to "LRC-V3" 6503 | -9/Storage | Garrison activated, responded to threat 6688 | -9/Storage | Learned location of Armory (-4) 6691 | -9/Storage | Build established: Commander-Mutant 6699 | -9/Storage | Used back door to open Recycling access 6803 | -9/Storage | First assault squad dispatched 6894 | -9/Storage | Lost 6 allies 6977 | -9/Storage | Discovered new exit (range 16) 7129 | -9/Storage | Build established: Mutant 7622 | -9/Storage | Entered Recycling 7623 | -9/Recycling | Identified exit to Factory 8634 | -9/Recycling | Learned Materials recycling unit intel 8694 | -9/Recycling | Learned 2 Storage zone layouts 8744 | -9/Recycling | Learned Materials repair station intel 8783 | -9/Recycling | Learned location of 2 exits from Materials 8813 | -9/Recycling | Loaded intel: 7 recycling unit locations 8868 | -9/Recycling | Learned location of 1 exit from Storage 8909 | -9/Recycling | Learned location of Mines (-9) 8962 | -9/Recycling | Learned Materials repair station intel 9009 | -9/Recycling | Scanned before Scraplab entrance 9047 | -9/Recycling | Entered Scraplab 9067 | -9/Recycling | Discovered new exit (range 3) 9405 | -9/Recycling | Entered Scraptown 9405 | -9/Scraptown | Accompanied by 2 allies 9665 | -9/Scraptown | Visited Shadow of the Wyrm 9708 | -9/Scraptown | Visited SPCMW 9733 | -9/Scraptown | Visited Cyclists 9785 | -9/Scraptown | Visited Spacefarers 9825 | -9/Scraptown | Visited CR-KLE's Repair Center 9845 | -9/Scraptown | Visited Junk Repository 9893 | -9/Scraptown | Visited Awakened 10073 | -9/Scraptown | Discovered new exit (range 11) 10733 | -9/Scraptown | Visited UFD Registry 10733 | -9/Scraptown | Registered with UFD as "Rustglider" 10963 | -9/Scraptown | Visited Science Testing Area 11005 | -9/Scraptown | Visited Observation Area 11060 | -9/Scraptown | Visited Scrap Suit Storage 11113 | -9/Scraptown | Visited Cartography Club 11140 | -9/Scraptown | Visited A0-MCA Data Center 11175 | -9/Scraptown | Visited Derelict Rescue Squad 11210 | -9/Scraptown | Visited Botcube Research 11245 | -9/Scraptown | Visited DA-N13 Charitable Foundation 11255 | -9/Scraptown | Found DCF Scrap (27 items) 11325 | -9/Scraptown | Visited Curators Association 11408 | -9/Scraptown | Visited Junk Cannon Lab 11615 | -9/Scraptown | Discovered new exit (range 5) 12322 | -9/Scraptown | Learned location of Zion (-6) 12322 | -9/Scraptown | Learned 8 Factory zone layouts 12322 | -9/Scraptown | Learned 20 Factory zone layouts 12322 | -9/Scraptown | Learned 8 Research zone layouts 12322 | -9/Scraptown | Learned 12 Research zone layouts 12322 | -9/Scraptown | Learned 24 Proximity Caves zone layouts 12322 | -9/Scraptown | Learned 16 Upper Caves zone layouts 12322 | -9/Scraptown | Learned 8 Lower Caves zone layouts 12322 | -9/Scraptown | Learned 20 Lower Caves zone layouts 12322 | -9/Scraptown | Learned Factory emergency access door positions 12322 | -9/Scraptown | Learned location of 3 exits from Lower Caves 12322 | -9/Scraptown | Learned location of 1 exit from Upper Caves 12322 | -9/Scraptown | Learned location of 3 exits from Upper Caves 12347 | -9/Scraptown | Found Deep Structural Scanner 12744 | -9/Scraptown | Given an S rating by A0-MCA 12745 | -9/Scraptown | Found Prototype Processor 12748 | -9/Scraptown | Found A0-MCA's Component Scanner 12930 | -9/Scraptown | Found Lrg. Botcube 12984 | -9/Scraptown | Found Prototype Special Weapon 12984 | -9/Scraptown | Identified Junk Cannon 13280 | -9/Scraptown | Entered Cyclist Reading Room 13765 | -9/Scraptown | CR-KLE repaired 5 parts 13903 | -9/Scraptown | Found DRS Beacon 14025 | -9/Scraptown | Met Optimus 14025 | -9/Scraptown | Accepted into 0bPrime 14087 | -9/Scraptown | Entered Factory 14087 | -6/Factory | Accompanied by 2 allies 14087 | -6/Factory | Evolved 6 slots: Power x1, Propulsion x3, Utility x2 14088 | -6/Factory | Identified exit to Factory 14088 | -6/Factory | Identified exit to Lower Caves 14088 | -6/Factory | Identified exit to Extension 14215 | -6/Factory | Loaded intel: 8 recycling unit locations 14219 | -6/Factory | Identified Expert System 14355 | -6/Factory | Learned location of Protoforge (-2) 14423 | -6/Factory | Hacking Suite fried by hacking feedback 14534 | -6/Factory | Build established: Scout 14541 | -6/Factory | Sucked down chute 14541 | -6/Factory | Entered Waste 14542 | -6/Waste | Joined by Warlord forces that had cleared the area 14614 | -6/Waste | Discovered new exit (range 12) 14731 | -6/Waste | A Compactor rumbled back to life 14732 | -6/Waste | Spotted C-40 Crusher 14738 | -6/Waste | Allies destroyed C-40 Crusher 15161 | -6/Waste | Found Damper Plating 15339 | -6/Waste | Lrg. Botcube activated 15367 | -6/Waste | Lrg. Botcube completed mutation into treaded form, armed with 4 guns. 15415 | -6/Waste | Identified exit to Factory 15459 | -6/Waste | Entered Factory 15459 | -6/Factory | Accompanied by 21 allies 15482 | -6/Factory | Discovered exit to Lower Caves (range 15) 15580 | -6/Factory | Lost 5 allies 15657 | -6/Factory | Loaded intel: 8 recycling unit locations 15657 | -6/Factory | Discovered exit to Factory (range 9) 15777 | -6/Factory | Spotted B-75 Beast 15789 | -6/Factory | Allies destroyed B-75 Beast 15844 | -6/Factory | Garrison activated, responded to threat 15897 | -6/Factory | Lost 3 allies 15995 | -6/Factory | Allied Derelicts emerged from ambush trap array 16142 | -6/Factory | Entered Extension 16142 | -6/Extension | Accompanied by 5 allies 16157 | -6/Extension | Rescued a captive Derelict 16179 | -6/Extension | Rescued a captive Derelict 16179 | -6/Extension | Rescued a captive Derelict 16230 | -6/Extension | Rescued a captive Derelict 16300 | -6/Extension | Lost 3 allies 16333 | -6/Extension | Rescued a captive Derelict 16334 | -6/Extension | Rescued a captive Derelict 16346 | -6/Extension | Loaded intel: 2 recycling unit locations 16346 | -6/Extension | Watched by a mysterious "MATRIX" hacker. 16467 | -6/Extension | Warlord forces began an assault 16573 | -6/Extension | Spotted B-75 Beast 16597 | -6/Extension | Spotted B-75 Beast 16605 | -6/Extension | Allies destroyed B-75 Beast 16800 | -6/Extension | Rescued a captive Derelict 16825 | -6/Extension | Lost 3 allies 16896 | -6/Extension | Rescued a captive Derelict 16897 | -6/Extension | Rescued a captive Derelict 16915 | -6/Extension | Central database locked down 16930 | -6/Extension | Discovered exit to Factory (range 10) 16931 | -6/Extension | Discovered new exit (range 6) 16961 | -6/Extension | Rescued A7 16979 | -6/Extension | Identified exit to Cetus 17057 | -6/Extension | Entered Cetus 17057 | -6/Cetus | Accompanied by 19 allies (A7) 17062 | -6/Cetus | Acquired a Cetus Manufacturing Module code from A7 17085 | -6/Cetus | Spotted Cetus Guard 17085 | -6/Cetus | Spotted Cetus Guard 17087 | -6/Cetus | Spotted Cetus Guard 17088 | -6/Cetus | Spotted Cetus Guard 17097 | -6/Cetus | Allies destroyed Cetus Guard 17105 | -6/Cetus | Allies destroyed Cetus Guard 17114 | -6/Cetus | Allies destroyed Cetus Guard 17144 | -6/Cetus | Lost 6 allies 17148 | -6/Cetus | Started Cetus Manufacturing Module 17173 | -6/Cetus | Manufactured an Enhanced Grunt 17178 | -6/Cetus | Build established: Commander-Sprinter 17195 | -6/Cetus | Escorted A7 to Cetus Mainframe 17198 | -6/Cetus | Manufactured an Enhanced Grunt 17198 | -6/Cetus | Discovered new exit (range 15) 17202 | -6/Cetus | Identified exit to Archives 17223 | -6/Cetus | Manufactured an Enhanced Grunt 17248 | -6/Cetus | Manufactured an Enhanced Grunt 17273 | -6/Cetus | Manufactured an Enhanced Grunt 17338 | -6/Cetus | Spotted Cetus Guard 17338 | -6/Cetus | Spotted Cetus Guard 17346 | -6/Cetus | Spotted Cetus Guard 17353 | -6/Cetus | Spotted Cetus Guard 17354 | -6/Cetus | Allies destroyed Cetus Guard 17364 | -6/Cetus | Allies destroyed Cetus Guard 17369 | -6/Cetus | Allies destroyed Cetus Guard 17378 | -6/Cetus | Discovered exit to Factory (range 15) 17381 | -6/Cetus | Met Revision 17 17398 | -6/Cetus | Lost 5 allies 17455 | -6/Cetus | Entered Archives 17455 | -6/Archives | Accompanied by 12 allies (A7) 17460 | -6/Archives | Received a hacking code to weaken MAIN.C 17511 | -6/Archives | Discovered exit to Factory (range 15) 17516 | -6/Archives | Discovered new exit (range 13) 17732 | -6/Archives | Identified exit to Hub_04(d) 18361 | -6/Archives | Entered Hub_04(d) 18361 | -6/Hub_04(d) | Accompanied by 9 allies 18502 | -6/Hub_04(d) | Lost 4 allies 18521 | -6/Hub_04(d) | Garrison activated, responded to threat 18819 | -6/Hub_04(d) | Network Hub disabled 18822 | -6/Hub_04(d) | Spotted Lightning 18823 | -6/Hub_04(d) | Spotted Lightning 18833 | -6/Hub_04(d) | Network Hub disabled 18835 | -6/Hub_04(d) | Spotted Lightning 18838 | -6/Hub_04(d) | Spotted Lightning 18838 | -6/Hub_04(d) | Spotted Lightning 18879 | -6/Hub_04(d) | Spotted Lightning 18881 | -6/Hub_04(d) | Entered Factory 18881 | -5/Factory | Evolved 2 slots: Utility x2 18904 | -5/Factory | Identified exit to Upper Caves 18915 | -5/Factory | Loaded intel: 8 recycling unit locations 18965 | -5/Factory | Discovered new exit (range 16) 18991 | -5/Factory | Identified exit to Factory 19185 | -5/Factory | Build established: Scavenger-Scout 19223 | -5/Factory | Discovered exit to Factory (range 15) 19247 | -5/Factory | Central database locked down 19287 | -5/Factory | Discovered exit to Factory (range 16) 19330 | -5/Factory | Entered Upper Caves 19331 | -5/Upper Caves | Identified exit to Upper Caves 19342 | -5/Upper Caves | Learned 4 Factory zone layouts 19362 | -5/Upper Caves | Encountered a Warlord checkpoint 19617 | -5/Upper Caves | Build established: Hacker-Scout 19626 | -5/Upper Caves | Entered another Upper Caves area 19627 | -5/Upper Caves | Identified exit to Warlord 19656 | -5/Upper Caves | Learned location of 1 exit from Proximity Caves 19679 | -5/Upper Caves | Encountered a Warlord checkpoint 19827 | -5/Upper Caves | Entered Warlord 19836 | -5/Warlord | System corruption cleaned by Quarantine Array 19942 | -5/Warlord | Found Prototype Device 19942 | -5/Warlord | Identified Exp. Focal Shield 19954 | -5/Warlord | Found Prototype Processor 19954 | -5/Warlord | Identified Exp. Targeting Computer 19957 | -5/Warlord | Found Prototype Reactor 19957 | -5/Warlord | Identified Vortex Chain Reactor 19978 | -5/Warlord | Visited the Vortex Lab 19979 | -5/Warlord | Found Prototype Energy Cannon 19979 | -5/Warlord | Identified Vortex Driver 19981 | -5/Warlord | Found Prototype Energy Gun 19981 | -5/Warlord | Identified Vortex Rail 19985 | -5/Warlord | Found Vortex Rail 19987 | -5/Warlord | Warlord's base attacked by MAIN.C 20061 | -5/Warlord | Learned Research recycling unit intel 20061 | -5/Warlord | Learned 4 Access zone layouts 20061 | -5/Warlord | Learned 4 Command zone layouts 20061 | -5/Warlord | Learned Testing trap positions 20073 | -5/Warlord | P-70 Sage assimilated allied NP-B10(d) 20216 | -5/Warlord | Lost 3 allies 20337 | -5/Warlord | Warlord forces counterattacked 20437 | -5/Warlord | Spotted Striker 20439 | -5/Warlord | Destroyed Striker 20456 | -5/Warlord | Discovered new exit (range 22) 20487 | -5/Warlord | Lost 7 allies 20508 | -5/Warlord | Spotted Striker 20515 | -5/Warlord | Destroyed Striker 20528 | -5/Warlord | Found Prototype Processor 20528 | -5/Warlord | Identified Exp. Core Analyzer 20551 | -5/Warlord | Identified exit to Proximity Caves 20552 | -5/Warlord | Entered Proximity Caves 20559 | -4/Proximity Caves | Lost 4 allies 20632 | -4/Proximity Caves | Entered Factory 20632 | -4/Factory | Evolved 2 slots: Utility x1, Weapon x1 20633 | -4/Factory | Identified exit to Armory 20662 | -4/Factory | Identified exit to Upper Caves 20754 | -4/Factory | Build established: Scavenger-Scout 20770 | -4/Factory | Found Prototype Hackware 20770 | -4/Factory | Identified Exp. Hacking Suite 20888 | -4/Factory | Found Prototype Processor 20888 | -4/Factory | Identified Exp. Signal Interpreter 20909 | -4/Factory | Loaded intel: 8 recycling unit locations 20962 | -4/Factory | Central database locked down 21031 | -4/Factory | Found Prototype Launcher 21031 | -4/Factory | Identified Com. Tesla Bomb Launcher 21064 | -4/Factory | Found Launcher Loader 21104 | -4/Factory | Entered Upper Caves 21105 | -4/Upper Caves | Identified exit to Upper Caves 21160 | -4/Upper Caves | Spotted B-86 Titan 21426 | -4/Upper Caves | Entered another Upper Caves area 21427 | -4/Upper Caves | Identified exit to Zhirov 21427 | -4/Upper Caves | Discovered new exit (range 11) 21442 | -4/Upper Caves | Learned Research terminal intel 21579 | -4/Upper Caves | Entered an active Warlord outpost 21585 | -4/Upper Caves | Learned location of 1 exit from Research 21622 | -4/Upper Caves | Entered Zhirov 21622 | -4/Zhirov | Discovered new exit (range 3) 21628 | -4/Zhirov | Met Zhirov 21635 | -4/Zhirov | Learned location of Quarantine (-2) 21635 | -4/Zhirov | Learned location of Testing (-3) 21637 | -4/Zhirov | Zhirov requested help retrieving the SGEMP Prototype 21642 | -4/Zhirov | Found Alien Artifact 21642 | -4/Zhirov | Identified Integrated Dissipator 21642 | -4/Zhirov | Installed Integrated Dissipator, increased core heat dissipation (+20) 21663 | -4/Zhirov | Found Alien Artifact 21683 | -4/Zhirov | Identified exit to Proximity Caves 21684 | -4/Zhirov | Entered Proximity Caves 21685 | -3/Proximity Caves | Identified exit to Research 22453 | -3/Proximity Caves | Entered Research 22453 | -3/Research | Evolved 2 slots: Power x1, Weapon x1 22454 | -3/Research | Identified exit to Research 22455 | -3/Research | Identified exit to Testing 22456 | -3/Research | Loaded intel: 18 terminal locations 22457 | -3/Research | Loaded intel: 5 recycling unit locations 22457 | -3/Research | Targeted by mysterious "MATRIX" hacker. 22571 | -3/Research | Found Prototype Device 22571 | -3/Research | Identified Exp. EM Disruption Field 22599 | -3/Research | Found Gamma Bomb Array 22621 | -3/Research | Central database locked down 22645 | -3/Research | Loaded intel: 5 recycling unit locations 22653 | -3/Research | Revision forces began assault on 0b10 22861 | -3/Research | Entered Testing 22862 | -3/Testing | Loaded intel: 6 trap records 22874 | -3/Testing | Found Prototype Ballistic Gun 22874 | -3/Testing | Identified Hyp. Multirail 22892 | -3/Testing | Found Prototype Energy Gun 22892 | -3/Testing | Identified Hyp. EM Gauss Rifle 22902 | -3/Testing | Found Prototype Hackware 22902 | -3/Testing | Identified Ghost Barrier 22912 | -3/Testing | Found Prototype Energy Cannon 22912 | -3/Testing | Identified Hpw. Disruptor Cannon 22999 | -3/Testing | Found Prototype Ballistic Cannon 22999 | -3/Testing | Identified Perforator 23021 | -3/Testing | Spotted PH-GR02PFPM5C 23075 | -3/Testing | Found Prototype Device 23075 | -3/Testing | Identified Exp. Hardlight Generator 23153 | -3/Testing | Found Prototype Energy Cannon 23153 | -3/Testing | Identified Cld. Nova Cannon 23165 | -3/Testing | Discovered exit to Research (range 19) 23184 | -3/Testing | Entered Research 23184 | -2/Research | Evolved 2 slots: Weapon x2 23412 | -2/Research | Loaded intel: 5 recycling unit locations 23471 | -2/Research | Identified Transdimensional Reconstructor 23471 | -2/Research | Warped through subspace 23585 | -2/Research | Spotted B-90 Cyclops 23605 | -2/Research | Build established: Hacker-Scout 23667 | -2/Research | Found Fusion Bomb Launcher 23705 | -2/Research | Discovered new exit (range 3) 23705 | -2/Research | Identified exit to Access 23736 | -2/Research | Lost 5 parts (2n2u1w) 23753 | -2/Research | Discovered exit to Access (range 18) 23781 | -2/Research | Discovered new exit (range 10) 23790 | -2/Research | Identified exit to Quarantine 23790 | -2/Research | Entered Quarantine 23798 | -2/Quarantine | Found Alien Impact Weapon 23809 | -2/Quarantine | Lost 3 parts (1p1n1u) 23965 | -2/Quarantine | Found Alien Artifact 24072 | -2/Quarantine | Discovered exit to Access (range 12) 24093 | -2/Quarantine | Spotted Fortress 24112 | -2/Quarantine | Discovered new exit (range 5) 24112 | -2/Quarantine | Discovered new exit (range 6) 24119 | -2/Quarantine | Identified exit to Section 7 24120 | -2/Quarantine | Identified exit to Protoforge 24120 | -2/Quarantine | Entered Protoforge 24137 | -2/Protoforge | Spotted Hotshot 24137 | -2/Protoforge | Superfortress began startup sequence 24148 | -2/Protoforge | Spotted Hotshot 24148 | -2/Protoforge | Spotted Hotshot 24155 | -2/Protoforge | Spotted Hotshot 24194 | -2/Protoforge | Spotted AP7-3 24194 | -2/Protoforge | Spotted AP7-3 24370 | -2/Protoforge | Search patrols dispatched 24387 | -2/Protoforge | Lost 5 parts (2p2n1u) 24410 | -2/Protoforge | Core integrity fell below 50% 24439 | -2/Protoforge | Spotted EXE-6 24443 | -2/Protoforge | Spotted SKR-2 24444 | -2/Protoforge | Spotted EXE-6 24445 | -2/Protoforge | Spotted SKR-2 24445 | -2/Protoforge | Spotted SKR-2 24459 | -2/Protoforge | Core integrity fell below 20% 24475 | -2/Protoforge | UFD initiated attack on Protoforge (Readiness: Maximal) 24475 | -2/Protoforge | Loaded intel: 3 recycling unit locations 24491 | -2/Protoforge | Lost 10 parts (1p4n4u1w) 24494 | -2/Protoforge | Destroyed SKR-2 24494 | -2/Protoforge | Destroyed SKR-2 24497 | -2/Protoforge | Destroyed SKR-2 24507 | -2/Protoforge | Spotted EXE-6 24510 | -2/Protoforge | Attached CPS modules to VU-ZGI(E). 24512 | -2/Protoforge | Optimus greeted in Protoforge 24528 | -2/Protoforge | Attached CPS modules to UF-OSN(E). 24537 | -2/Protoforge | Found Scrap Suit 24540 | -2/Protoforge | Lost 9 allies 24574 | -2/Protoforge | Found Exp. Core Analyzer 24576 | -2/Protoforge | Found Exp. Kinecellerator 24778 | -2/Protoforge | Forge Plexus network access discovered 24805 | -2/Protoforge | UFD reported confirmed Drillbomb installation 24813 | -2/Protoforge | Found Exp. Targeting Computer 24842 | -2/Protoforge | Build established: Scavenger-Scrapper 24875 | -2/Protoforge | UFD reported confirmed Drillbomb installation 24910 | -2/Protoforge | UFD reported confirmed Drillbomb installation 24987 | -2/Protoforge | Found 0bPrime Scrap Suit 25060 | -2/Protoforge | Spotted Executioner 25109 | -2/Protoforge | Spotted Executioner 25125 | -2/Protoforge | Spotted Striker 25150 | -2/Protoforge | Spotted Executioner 25171 | -2/Protoforge | Spotted Executioner 25173 | -2/Protoforge | Spotted Striker 25189 | -2/Protoforge | P-80 Master assimilated allied 02F73-D 25224 | -2/Protoforge | Spotted Striker 25234 | -2/Protoforge | Spotted Striker 25239 | -2/Protoforge | Spotted Striker 25242 | -2/Protoforge | Spotted Executioner 25243 | -2/Protoforge | Destroyed Striker 25254 | -2/Protoforge | Destroyed Striker 25264 | -2/Protoforge | Destroyed Striker 25267 | -2/Protoforge | Spotted Striker 25269 | -2/Protoforge | Spotted Striker 25278 | -2/Protoforge | Lost 24 allies 25305 | -2/Protoforge | Spotted Striker 25305 | -2/Protoforge | Spotted Executioner 25308 | -2/Protoforge | Destroyed 10 combat bots 25339 | -2/Protoforge | Destroyed Striker 25362 | -2/Protoforge | Spotted Striker 25363 | -2/Protoforge | Spotted Striker 25378 | -2/Protoforge | Lost 9 allies 25386 | -2/Protoforge | Found Exp. Targeting Computer 25415 | -2/Protoforge | Spotted Striker 25441 | -2/Protoforge | Spotted Striker 25443 | -2/Protoforge | Destroyed Striker 25448 | -2/Protoforge | Spotted Executioner 25449 | -2/Protoforge | Destroyed Executioner 25450 | -2/Protoforge | Spotted Executioner 25454 | -2/Protoforge | Destroyed Executioner 25458 | -2/Protoforge | P-80 Master assimilated allied 02F98-D 25487 | -2/Protoforge | Spotted Executioner 25490 | -2/Protoforge | Destroyed 7 combat bots 25498 | -2/Protoforge | Destroyed Executioner 25528 | -2/Protoforge | Destroyed Overlord 25532 | -2/Protoforge | Lost 10 allies 25549 | -2/Protoforge | Crushed by falling debris 25549 | -2/Protoforge | Smashed by cave-in Last Messages --------------- Reactor. 25543_ N-04 Retriever collects Adv. Heat Sink. 25545_ N-04 Retriever collects Prototype Device. 25545_ N-04 Retriever collects Helical Railgun. 25545_ N-04 Retriever collects Com. Battery. 25545_ N-04 Retriever collects Adv. Weight Redist. System. 25546_ The unstable cave ceiling collapses. 25546_ 02FAD-D crushed by falling debris. 25546_ 02FAD-D system corrupted by crushing effect. 25546_ Mak. Salvage Targeting Computer crushed. 25546_ Dropped Hvy. Machine Gun. 25547_ 0bPrime Scrap Suit secures Helical Railgun. 25547_ 02F15-K cannibalizes Mak. Medium Armor Plating to repair Mak. Propulsion Shielding. 25547_ 02FAD-D system terminally corrupted. 25549_ The unstable cave ceiling collapses. 25549_ Crushed by falling debris. Map ----- +----------------------------------------------------+ | ???????????????????????????## """ """ ##???????? | | ############???????????????## """ """ ##???????? | | ############???????????????## ##???????? | | ## ##???????????????## ##???????? | | # ##???????????????## #####????? | | # ##???????????????#######+#######"##????? | | # """" ##???????????????###### ##????? | | # """" ##???????????????????## ##????? | | # """" ##??############?????## ##????? | | # """" ##??############?????### #+### ##???## | | ## ##??## ##?????## # ##### # | | ## ###### ##?????#" # ####"## | | ######+######### """ "" ##?????## # " | | ##### + """ "" ##?##??## # # | | + ######## """ "" ##?# ####%S"" " # | | # ## ##### """ "" ##??# # # "" " ! | | + ### #?## [ ##### #;######[[ *% | | # #### ### !!!= ### =[!]! =[!==[! | | ? # #""## #! *[%![!# ###!=![%% ; ="*""""" | | ??? # #T"#;;!!!=!*=[%![=;;*=%;;;%&;;""% """"""" | | ##### != % !%%*%%%%%%[% %%%% n%% %% % %%&%%%% | | ??? # !%! !!*%%!%% % % %%%%%%%%% %%%%%%%%%%% | | ??? # !!%[%!%% % %%%&%%%%%%%%%%%%%%%% | | ?? # #######!%=!=% ;%;;;;&%%"% %% %"""%%"%"%""% | | ?? # ######==*%=!!%% %=!=% ! % % % " [" | | ? # ; !!!!=!%[% *@#=%=%!|!* " | | """ # # """" ! [!%%= *%[=*=*= %% & "# | | """ # # """"" ;[ ;[[j% [%=*%=" % # ## | | """ # # """" # %;#!!/%SS!s=! % " "##? | | """ # # """"" ? # ;=%%;%SS!*!= " # #? | | ##### # ;*%!%&%%*;!#;### ## ###? | | ##### # # ! !%=!!! ### ##" ##?? | | ???## # #%% ;[!%! ## #### ##?? | | ???## #####;;+### # *!" ###??#"#""#######?? | | ???## "%" #%""" " ##???#### #######?? | | ???## " % + """ " ##??????###???????? | | ##### # " " ##????????????????? | | ######+#+### ##"# ; " "" ##????????????????? | | + # # # # " " " ##????????????????? | | ## # ? #### # ##????????????????? | | ## """ """ # ? #### #####+##;##????????????????? | | ## # ? #### ?????## #????????????????? | | ############ ??#### ???????###?????????????????? | | ### # ??#### ?????????###########?????????? | | ?## # ??###########???###########?????????? | | ?## " " # ??#????????##???#????????##?????????? | | ?## "" "" # ??#????????##???#????????##?????????? | | ?## " / ???????????##???#????????##?????????? | | ?## " " # ??#????????##???#????????##?????????? | | ?## """ # ??#????????##????????????##?????????? | +----------------------------------------------------+ Best States ------------- Heat Dissipation 109 Energy Generation 77 Energy Capacity 850 Matter Stores 300 Matter Capacity 300 Sight Range 23 Robot Scan Range 16 Terrain Scan Range 16 Terrain Scan Density 10 Jamming Range 16 Cloak Strength 3 Power Amplification 20 Additional Mass Support 16 Armor Coverage 1600 Resistance: KI 20 Resistance: EM 90 Propulsion Shielding 66 Evasion (%) 65 Targeting Accuracy 12 Core Analysis 8 Recoil Reduction 3 Kinecelleration 66 Offensive Hacking 28 Defensive Hacking 12 Authchip Count 1 Item Schematics ----------------- Imp. Flight Unit | -9/Materials | Scanalyzed Huge Storage Unit | -9/Storage | Hacked Imp. Light Armor Plating | -6/Factory | Scanalyzed Thunder Leg | -6/Extension | Hacked Assault Drone Bay | -4/Zhirov | Free Exp. Heat Sink | -4/Zhirov | Free Exp. Optical Array | -4/Zhirov | Free Imp. Arc Thrower | -4/Zhirov | Free Robot Schematics ------------------ None Fabricated ------------ Nothing Repaired ---------- Lgt. Treads | 11% | -10/Materials Studied --------- Wheel | -9/Materials | Hacked Lgt. EM Pulse Cannon | -9/Materials | Hacked Rocket Launcher | -9/Materials | Hacked Hvy. Assault Rifle | -9/Materials | Hacked Lgt. Angular Momentum Engine | -6/Factory | Hacked Lgt. Fission Core | -6/Factory | Hacked Field Propulsion Array | -5/Factory | Hacked Impulse Thruster Array | -4/Factory | Hacked Hyp. Mass Driver | -3/Research | Hacked Gamma Bomb Array | -3/Research | Hacked Mic. Antimatter Reactor | -3/Research | Hacked Impulse Thruster | -3/Testing | Hacked Alien Tech Used ----------------- Integrated Dissipator Transdimensional Reconstructor Achievements -------------- Fitting Room Challenges ------------ None Game ------ Seed CorruptionDroneMagmablaster Manual? 0 Play Time 06:00:49 Cumulative 704.9 hours Start 2026.04.14 @ 17:38:37 End 2026.04.15 @ 10:21:21 Sessions 5 Manual Loads 0 Difficulty Rogue Special Mode None Game No. 392 Rogue 392 Adventurer 0 Explorer 0 Win Type - Total 30 Types 15/1/6/2/1/1/1/2/1/0 Lore% 93 Gallery% 87 Achievement% 79 Wizard Run 0 Options --------- Layout 1 ASCII 0 Keyboard 0 Movement Numpad Keybinds 0 Fullscreen 2 Font 24/Smallcaps Map View 50x40 Zoom Use 0% Tactical HUD 1 Map Filters NONE Filters NONE Steam 1 RUN: 5308710d-767e-41cb-9b29-75178e7ab172